Workbook

Sheet MUAVİN
A2: Kebir | B2: Hesap Kodu | C2: Hesap Adı | D2: Fiş Tarihi | E2: Fiş No | F2: Açıklama | G2: Borç | H2: Alacak
A3: 100 | B3: 100.01 | G3: 7500 | H3: 4300
A4: 102 | B4: 102 | G4: 0 | H4: 5500
A5: 500 | G5: 0 | H5: 2500000
A6: 600 | G6: 0 | H6: 5500
A7: 610 | G7: 400 | H7: 0
A8: 750 | G8: 500 | H8: 0
A9: 760 | G9: 600 | H9: 0
A10: 770 | G10: 700 | H10: 0
A11: 780 | G11: 800 | H11: 0

Sheet MİZAN
A1: 31/12/202.. TARİHLİ MİZAN
A2: HESAP KODU | B2: HESAP ADI | C2: BORÇ | D2: ALACAK | E2: BORÇ BAKİYESİ | F2: ALACAK BAKİYESİ
A3: 100 | B3: KASA | C3: =SUMIF(MUAVİN!$A$3:$A$550001,MİZAN!A3,MUAVİN!$G$3:$G$550001) -> 7500 | D3: =SUMIF(MUAVİN!$A$3:$A$550001,MİZAN!A3,MUAVİN!$H$3:$H$550001) -> 4300 | E3: =IF(C3>D3,C3-D3,0) -> 3200 | F3: =IF(D3>C3,D3-C3,0) -> 0
A4: 101 | B4: ALINAN ÇEKLER | C4: =SUMIF(MUAVİN!$A$3:$A$550001,MİZAN!A4,MUAVİN!$G$3:$G$550001) -> 0 | D4: =SUMIF(MUAVİN!$A$3:$A$550001,MİZAN!A4,MUAVİN!$H$3:$H$550001) -> 0 | E4: =IF(C4>D4,C4-D4,0) -> 0 | F4: =IF(D4>C4,D4-C4,0) -> 0
A5: 102 | B5: BANKALAR | C5: =SUMIF(MUAVİN!$A$3:$A$550001,MİZAN!A5,MUAVİN!$G$3:$G$550001) -> 0 | D5: =SUMIF(MUAVİN!$A$3:$A$550001,MİZAN!A5,MUAVİN!$H$3:$H$550001) -> 5500 | E5: 0 | F5: 5500
A6: 103 | B6: VERİLEN ÇEKLER VE ÖDEME EMİRLERİ (-) | C6: =SUMIF(MUAVİN!$A$3:$A$550001,MİZAN!A6,MUAVİN!$G$3:$G$550001) -> 0 | D6: =SUMIF(MUAVİN!$A$3:$A$550001,MİZAN!A6,MUAVİN!$H$3:$H$550001) -> 0 | E6: 0 | F6: 0
A7: 108 | B7: HAZIR DEĞERLER | C7: =SUMIF(MUAVİN!$A$3:$A$550001,MİZAN!A7,MUAVİN!$G$3:$G$550001) -> 0 | D7: =SUMIF(MUAVİN!$A$3:$A$550001,MİZAN!A7,MUAVİN!$H$3:$H$550001) -> 0 | E7: 0 | F7: 0
A8: 110 | B8: HİSSE SENETLERİ | C8: =SUMIF(MUAVİN!$A$3:$A$550001,MİZAN!A8,MUAVİN!$G$3:$G$550001) -> 0 | D8: =SUMIF(MUAVİN!$A$3:$A$550001,MİZAN!A8,MUAVİN!$H$3:$H$550001) -> 0 | E8: 0 | F8: 0
A9: 111 | B9: ÖZEL KESİM TAHVİL | C9: =SUMIF(MUAVİN!$A$3:$A$550001,MİZAN!A9,MUAVİN!$G$3:$G$550001) -> 0 | D9: =SUMIF(MUAVİN!$A$3:$A$550001,MİZAN!A9,MUAVİN!$H$3:$H$550001) -> 0 | E9: 0 | F9: 0
A10: 112 | B10: KAMU KESİMİ TAHV | C10: =SUMIF(MUAVİN!$A$3:$A$550001,MİZAN!A10,MUAVİN!$G$3:$G$550001) -> 0 | D10: =SUMIF(MUAVİN!$A$3:$A$550001,MİZAN!A10,MUAVİN!$H$3:$H$550001) -> 0 | E10: 0 | F10: 0
A11: 118 | B11: DİĞER MENKUL KIYMETLER | C11: =SUMIF(MUAVİN!$A$3:$A$550001,MİZAN!A11,MUAVİN!$G$3:$G$550001) -> 0 | D11: =SUMIF(MUAVİN!$A$3:$A$550001,MİZAN!A11,MUAVİN!$H$3:$H$550001) -> 0 | E11: 0 | F11: 0
A12: 120 | B12: ALICILAR | C12: =SUMIF(MUAVİN!$A$3:$A$550001,MİZAN!A12,MUAVİN!$G$3:$G$550001) -> 0 | D12: =SUMIF(MUAVİN!$A$3:$A$550001,MİZAN!A12,MUAVİN!$H$3:$H$550001) -> 0 | E12: 0 | F12: 0
A13: 121 | B13: ALACAK SENETLERİ | C13: =SUMIF(MUAVİN!$A$3:$A$550001,MİZAN!A13,MUAVİN!$G$3:$G$550001) -> 0 | D13: =SUMIF(MUAVİN!$A$3:$A$550001,MİZAN!A13,MUAVİN!$H$3:$H$550001) -> 0 | E13: 0 | F13: 0
A14: 126 | B14: VERİLEN DEPOZİTO VE TEMİNATLAR | C14: =SUMIF(MUAVİN!$A$3:$A$550001,MİZAN!A14,MUAVİN!$G$3:$G$550001) -> 0 | D14: =SUMIF(MUAVİN!$A$3:$A$550001,MİZAN!A14,MUAVİN!$H$3:$H$550001) -> 0 | E14: 0 | F14: 0
A15: 127 | B15: DİĞER TİCARİ ALACAKLAR | C15: =SUMIF(MUAVİN!$A$3:$A$550001,MİZAN!A15,MUAVİN!$G$3:$G$550001) -> 0 | D15: =SUMIF(MUAVİN!$A$3:$A$550001,MİZAN!A15,MUAVİN!$H$3:$H$550001) -> 0 | E15: 0 | F15: 0
A16: 128 | B16: ŞÜPHELİ TİCARİ ALACAKLAR | C16: =SUMIF(MUAVİN!$A$3:$A$550001,MİZAN!A16,MUAVİN!$G$3:$G$550001) -> 0 | D16: =SUMIF(MUAVİN!$A$3:$A$550001,MİZAN!A16,MUAVİN!$H$3:$H$550001) -> 0 | E16: 0 | F16: 0
A17: 129 | B17: ŞÜPHELİ TİCARİ ALACAKLAR KARŞILIĞ (-) | C17: =SUMIF(MUAVİN!$A$3:$A$550001,MİZAN!A17,MUAVİN!$G$3:$G$550001) -> 0 | D17: =SUMIF(MUAVİN!$A$3:$A$550001,MİZAN!A17,MUAVİN!$H$3:$H$550001) -> 0 | E17: 0 | F17: 0
A18: 131 | B18: ORTAKLARDAN ALACAKLAR | C18: =SUMIF(MUAVİN!$A$3:$A$550001,MİZAN!A18,MUAVİN!$G$3:$G$550001) -> 0 | D18: =SUMIF(MUAVİN!$A$3:$A$550001,MİZAN!A18,MUAVİN!$H$3:$H$550001) -> 0 | E18: 0 | F18: 0
A19: 132 | B19: İŞTİRAKLERDEN ALACAKLAR | C19: =SUMIF(MUAVİN!$A$3:$A$550001,MİZAN!A19,MUAVİN!$G$3:$G$550001) -> 0 | D19: =SUMIF(MUAVİN!$A$3:$A$550001,MİZAN!A19,MUAVİN!$H$3:$H$550001) -> 0 | E19: 0 | F19: 0
A20: 133 | B20: BAĞLI ORTAKLIKLARDAN ALACAKLAR | C20: =SUMIF(MUAVİN!$A$3:$A$550001,MİZAN!A20,MUAVİN!$G$3:$G$550001) -> 0 | D20: =SUMIF(MUAVİN!$A$3:$A$550001,MİZAN!A20,MUAVİN!$H$3:$H$550001) -> 0 | E20: 0 | F20: 0
A21: 135 | B21: PERSONELDEN ALACAKLAR | C21: =SUMIF(MUAVİN!$A$3:$A$550001,MİZAN!A21,MUAVİN!$G$3:$G$550001) -> 0 | D21: =SUMIF(MUAVİN!$A$3:$A$550001,MİZAN!A21,MUAVİN!$H$3:$H$550001) -> 0 | E21: 0 | F21: 0
A22: 136 | B22: DİĞER ÇEŞİTLİ ALACAKLAR | C22: =SUMIF(MUAVİN!$A$3:$A$550001,MİZAN!A22,MUAVİN!$G$3:$G$550001) -> 0 | D22: =SUMIF(MUAVİN!$A$3:$A$550001,MİZAN!A22,MUAVİN!$H$3:$H$550001) -> 0 | E22: 0 | F22: 0
A23: 150 | B23: İLK MADDE VE MALZEME | C23: =SUMIF(MUAVİN!$A$3:$A$550001,MİZAN!A23,MUAVİN!$G$3:$G$550001) -> 0 | D23: =SUMIF(MUAVİN!$A$3:$A$550001,MİZAN!A23,MUAVİN!$H$3:$H$550001) -> 0 | E23: 0 | F23: 0
A24: 151 | B24: YARI MAMUL | C24: =SUMIF(MUAVİN!$A$3:$A$550001,MİZAN!A24,MUAVİN!$G$3:$G$550001) -> 0 | D24: =SUMIF(MUAVİN!$A$3:$A$550001,MİZAN!A24,MUAVİN!$H$3:$H$550001) -> 0 | E24: 0 | F24: 0
A25: 152 | B25: MAMÜLLER | C25: =SUMIF(MUAVİN!$A$3:$A$550001,MİZAN!A25,MUAVİN!$G$3:$G$550001) -> 0 | D25: =SUMIF(MUAVİN!$A$3:$A$550001,MİZAN!A25,MUAVİN!$H$3:$H$550001) -> 0 | E25: 0 | F25: 0
A26: 153 | B26: TİCARİ MAL | C26: =SUMIF(MUAVİN!$A$3:$A$550001,MİZAN!A26,MUAVİN!$G$3:$G$550001) -> 0 | D26: =SUMIF(MUAVİN!$A$3:$A$550001,MİZAN!A26,MUAVİN!$H$3:$H$550001) -> 0 | E26: 0 | F26: 0
A27: 157 | B27: DİĞER STOKLAR | C27: =SUMIF(MUAVİN!$A$3:$A$550001,MİZAN!A27,MUAVİN!$G$3:$G$550001) -> 0 | D27: =SUMIF(MUAVİN!$A$3:$A$550001,MİZAN!A27,MUAVİN!$H$3:$H$550001) -> 0 | E27: 0 | F27: 0
A28: 159 | B28: VERİLEN SİPARİŞ AVANSLARI | C28: =SUMIF(MUAVİN!$A$3:$A$550001,MİZAN!A28,MUAVİN!$G$3:$G$550001) -> 0 | D28: =SUMIF(MUAVİN!$A$3:$A$550001,MİZAN!A28,MUAVİN!$H$3:$H$550001) -> 0 | E28: 0 | F28: 0
A29: 170 | B29: YILLARA YAYGIN İNŞAAT ONARIM İŞLERİ | C29: =SUMIF(MUAVİN!$A$3:$A$550001,MİZAN!A29,MUAVİN!$G$3:$G$550001) -> 0 | D29: =SUMIF(MUAVİN!$A$3:$A$550001,MİZAN!A29,MUAVİN!$H$3:$H$550001) -> 0 | E29: 0 | F29: 0
A30: 178 | B30: Yıllara Yaygın İnş. Enf.Düz. Hes. | C30: =SUMIF(MUAVİN!$A$3:$A$550001,MİZAN!A30,MUAVİN!$G$3:$G$550001) -> 0 | D30: =SUMIF(MUAVİN!$A$3:$A$550001,MİZAN!A30,MUAVİN!$H$3:$H$550001) -> 0 | E30: 0 | F30: 0
A31: 179 | B31: Taşeronlara Verilen Avanslar | C31: =SUMIF(MUAVİN!$A$3:$A$550001,MİZAN!A31,MUAVİN!$G$3:$G$550001) -> 0 | D31: =SUMIF(MUAVİN!$A$3:$A$550001,MİZAN!A31,MUAVİN!$H$3:$H$550001) -> 0 | E31: 0 | F31: 0
A32: 180 | B32: GELECEK AYLARA AİT GİDERLER | C32: =SUMIF(MUAVİN!$A$3:$A$550001,MİZAN!A32,MUAVİN!$G$3:$G$550001) -> 0 | D32: =SUMIF(MUAVİN!$A$3:$A$550001,MİZAN!A32,MUAVİN!$H$3:$H$550001) -> 0 | E32: 0 | F32: 0
A33: 181 | B33: GELİR TAHAKKUKLARI | C33: =SUMIF(MUAVİN!$A$3:$A$550001,MİZAN!A33,MUAVİN!$G$3:$G$550001) -> 0 | D33: =SUMIF(MUAVİN!$A$3:$A$550001,MİZAN!A33,MUAVİN!$H$3:$H$550001) -> 0 | E33: 0 | F33: 0
A34: 190 | B34: DEVREDEN KATMA DEĞER VERGİSİ | C34: =SUMIF(MUAVİN!$A$3:$A$550001,MİZAN!A34,MUAVİN!$G$3:$G$550001) -> 0 | D34: =SUMIF(MUAVİN!$A$3:$A$550001,MİZAN!A34,MUAVİN!$H$3:$H$550001) -> 0 | E34: 0 | F34: 0
A35: 191 | B35: İNDİRİLECEK KDV | C35: =SUMIF(MUAVİN!$A$3:$A$550001,MİZAN!A35,MUAVİN!$G$3:$G$550001) -> 0 | D35: =SUMIF(MUAVİN!$A$3:$A$550001,MİZAN!A35,MUAVİN!$H$3:$H$550001) -> 0 | E35: 0 | F35: 0
A36: 192 | B36: DİĞER KDV | C36: =SUMIF(MUAVİN!$A$3:$A$550001,MİZAN!A36,MUAVİN!$G$3:$G$550001) -> 0 | D36: =SUMIF(MUAVİN!$A$3:$A$550001,MİZAN!A36,MUAVİN!$H$3:$H$550001) -> 0 | E36: 0 | F36: 0
A37: 193 | B37: PEŞİN ÖDENEN VERGİLER VE FONLAR | C37: =SUMIF(MUAVİN!$A$3:$A$550001,MİZAN!A37,MUAVİN!$G$3:$G$550001) -> 0 | D37: =SUMIF(MUAVİN!$A$3:$A$550001,MİZAN!A37,MUAVİN!$H$3:$H$550001) -> 0 | E37: 0 | F37: 0
A38: 195 | B38: İŞ AVANSI | C38: =SUMIF(MUAVİN!$A$3:$A$550001,MİZAN!A38,MUAVİN!$G$3:$G$550001) -> 0 | D38: =SUMIF(MUAVİN!$A$3:$A$550001,MİZAN!A38,MUAVİN!$H$3:$H$550001) -> 0 | E38: 0 | F38: 0
A39: 196 | B39: PERSONEL AVANSLARI | C39: =SUMIF(MUAVİN!$A$3:$A$550001,MİZAN!A39,MUAVİN!$G$3:$G$550001) -> 0 | D39: =SUMIF(MUAVİN!$A$3:$A$550001,MİZAN!A39,MUAVİN!$H$3:$H$550001) -> 0 | E39: 0 | F39: 0
A40: 197 | B40: SAYIM VE TESELLÜM NOKSANLARI | C40: =SUMIF(MUAVİN!$A$3:$A$550001,MİZAN!A40,MUAVİN!$G$3:$G$550001) -> 0 | D40: =SUMIF(MUAVİN!$A$3:$A$550001,MİZAN!A40,MUAVİN!$H$3:$H$550001) -> 0 | E40: 0 | F40: 0
A41: 198 | B41: DİĞER ÇEŞİTLİ DÖNEN VARLIKLAR | C41: =SUMIF(MUAVİN!$A$3:$A$550001,MİZAN!A41,MUAVİN!$G$3:$G$550001) -> 0 | D41: =SUMIF(MUAVİN!$A$3:$A$550001,MİZAN!A41,MUAVİN!$H$3:$H$550001) -> 0 | E41: 0 | F41: 0
A42: 220 | B42: ALICILAR | C42: =SUMIF(MUAVİN!$A$3:$A$550001,MİZAN!A42,MUAVİN!$G$3:$G$550001) -> 0 | D42: =SUMIF(MUAVİN!$A$3:$A$550001,MİZAN!A42,MUAVİN!$H$3:$H$550001) -> 0 | E42: 0 | F42: 0
A43: 221 | B43: ALACAK SENETLERİ | C43: =SUMIF(MUAVİN!$A$3:$A$550001,MİZAN!A43,MUAVİN!$G$3:$G$550001) -> 0 | D43: =SUMIF(MUAVİN!$A$3:$A$550001,MİZAN!A43,MUAVİN!$H$3:$H$550001) -> 0 | E43: 0 | F43: 0
A44: 226 | B44: VERİLEN DEPOZİTO VE TEMİNATLAR | C44: =SUMIF(MUAVİN!$A$3:$A$550001,MİZAN!A44,MUAVİN!$G$3:$G$550001) -> 0 | D44: =SUMIF(MUAVİN!$A$3:$A$550001,MİZAN!A44,MUAVİN!$H$3:$H$550001) -> 0 | E44: 0 | F44: 0
A45: 231 | B45: ORTAKLARDAN ALACAKLAR | C45: =SUMIF(MUAVİN!$A$3:$A$550001,MİZAN!A45,MUAVİN!$G$3:$G$550001) -> 0 | D45: =SUMIF(MUAVİN!$A$3:$A$550001,MİZAN!A45,MUAVİN!$H$3:$H$550001) -> 0 | E45: =IF(C45>D45,C45-D45,0) -> 0 | F45: =IF(D45>C45,D45-C45,0) -> 0
A46: 232 | B46: İŞTİRAKLERDEN ALACAKLAR | C46: =SUMIF(MUAVİN!$A$3:$A$550001,MİZAN!A46,MUAVİN!$G$3:$G$550001) -> 0 | D46: =SUMIF(MUAVİN!$A$3:$A$550001,MİZAN!A46,MUAVİN!$H$3:$H$550001) -> 0 | E46: 0 | F46: 0
A47: 233 | B47: BAĞLI ORTAKLIKLARDAN ALACAKLAR | C47: =SUMIF(MUAVİN!$A$3:$A$550001,MİZAN!A47,MUAVİN!$G$3:$G$550001) -> 0 | D47: =SUMIF(MUAVİN!$A$3:$A$550001,MİZAN!A47,MUAVİN!$H$3:$H$550001) -> 0 | E47: 0 | F47: 0
A48: 236 | B48: DİĞER ÇEŞİTLİ ALACAKLAR | C48: =SUMIF(MUAVİN!$A$3:$A$550001,MİZAN!A48,MUAVİN!$G$3:$G$550001) -> 0 | D48: =SUMIF(MUAVİN!$A$3:$A$550001,MİZAN!A48,MUAVİN!$H$3:$H$550001) -> 0 | E48: 0 | F48: 0
A49: 240 | B49: BAĞLI MENKUL KIYMETLER | C49: =SUMIF(MUAVİN!$A$3:$A$550001,MİZAN!A49,MUAVİN!$G$3:$G$550001) -> 0 | D49: =SUMIF(MUAVİN!$A$3:$A$550001,MİZAN!A49,MUAVİN!$H$3:$H$550001) -> 0 | E49: 0 | F49: 0
A50: 241 | B50: BAĞLI MENKUL KIYMETLER DEĞER DÜŞÜK KARŞILIĞI (-) | C50: =SUMIF(MUAVİN!$A$3:$A$550001,MİZAN!A50,MUAVİN!$G$3:$G$550001) -> 0 | D50: =SUMIF(MUAVİN!$A$3:$A$550001,MİZAN!A50,MUAVİN!$H$3:$H$550001) -> 0 | E50: 0 | F50: 0
A51: 242 | B51: İŞTİRAKLER | C51: =SUMIF(MUAVİN!$A$3:$A$550001,MİZAN!A51,MUAVİN!$G$3:$G$550001) -> 0 | D51: =SUMIF(MUAVİN!$A$3:$A$550001,MİZAN!A51,MUAVİN!$H$3:$H$550001) -> 0 | E51: 0 | F51: 0
A52: 245 | B52: BAĞLI ORTAKLIKLAR | C52: =SUMIF(MUAVİN!$A$3:$A$550001,MİZAN!A52,MUAVİN!$G$3:$G$550001) -> 0 | D52: =SUMIF(MUAVİN!$A$3:$A$550001,MİZAN!A52,MUAVİN!$H$3:$H$550001) -> 0 | E52: 0 | F52: 0
A53: 250 | B53: ARAZİ VE ARSALAR | C53: =SUMIF(MUAVİN!$A$3:$A$550001,MİZAN!A53,MUAVİN!$G$3:$G$550001) -> 0 | D53: =SUMIF(MUAVİN!$A$3:$A$550001,MİZAN!A53,MUAVİN!$H$3:$H$550001) -> 0 | E53: 0 | F53: 0
A54: 251 | B54: YER ALTI VE YER ÜSTE ZENGİLLİKLER | C54: =SUMIF(MUAVİN!$A$3:$A$550001,MİZAN!A54,MUAVİN!$G$3:$G$550001) -> 0 | D54: =SUMIF(MUAVİN!$A$3:$A$550001,MİZAN!A54,MUAVİN!$H$3:$H$550001) -> 0 | E54: 0 | F54: 0
A55: 252 | B55: BİNALAR | C55: =SUMIF(MUAVİN!$A$3:$A$550001,MİZAN!A55,MUAVİN!$G$3:$G$550001) -> 0 | D55: =SUMIF(MUAVİN!$A$3:$A$550001,MİZAN!A55,MUAVİN!$H$3:$H$550001) -> 0 | E55: 0 | F55: 0
A56: 253 | B56: TESİS, MAKİNA VE CİHAZLAR | C56: =SUMIF(MUAVİN!$A$3:$A$550001,MİZAN!A56,MUAVİN!$G$3:$G$550001) -> 0 | D56: =SUMIF(MUAVİN!$A$3:$A$550001,MİZAN!A56,MUAVİN!$H$3:$H$550001) -> 0 | E56: 0 | F56: 0
A57: 254 | B57: TAŞITLAR | C57: =SUMIF(MUAVİN!$A$3:$A$550001,MİZAN!A57,MUAVİN!$G$3:$G$550001) -> 0 | D57: =SUMIF(MUAVİN!$A$3:$A$550001,MİZAN!A57,MUAVİN!$H$3:$H$550001) -> 0 | E57: 0 | F57: 0
A58: 255 | B58: DEMİRBAŞLAR | C58: =SUMIF(MUAVİN!$A$3:$A$550001,MİZAN!A58,MUAVİN!$G$3:$G$550001) -> 0 | D58: =SUMIF(MUAVİN!$A$3:$A$550001,MİZAN!A58,MUAVİN!$H$3:$H$550001) -> 0 | E58: 0 | F58: 0
A59: 256 | B59: DİĞER MADDİ DURAN VARLIKLAR | C59: =SUMIF(MUAVİN!$A$3:$A$550001,MİZAN!A59,MUAVİN!$G$3:$G$550001) -> 0 | D59: =SUMIF(MUAVİN!$A$3:$A$550001,MİZAN!A59,MUAVİN!$H$3:$H$550001) -> 0 | E59: 0 | F59: 0
A60: 257 | B60: BİRİKMİŞ AMORTİSMANLAR (-) | C60: =SUMIF(MUAVİN!$A$3:$A$550001,MİZAN!A60,MUAVİN!$G$3:$G$550001) -> 0 | D60: =SUMIF(MUAVİN!$A$3:$A$550001,MİZAN!A60,MUAVİN!$H$3:$H$550001) -> 0 | E60: 0 | F60: 0
A61: 258 | B61: YAPILMAKTA OLAN YATIRIMLAR | C61: =SUMIF(MUAVİN!$A$3:$A$550001,MİZAN!A61,MUAVİN!$G$3:$G$550001) -> 0 | D61: =SUMIF(MUAVİN!$A$3:$A$550001,MİZAN!A61,MUAVİN!$H$3:$H$550001) -> 0 | E61: =IF(C61>D61,C61-D61,0) -> 0 | F61: =IF(D61>C61,D61-C61,0) -> 0
A62: 259 | B62: VERİLEN AVANSLAR | C62: =SUMIF(MUAVİN!$A$3:$A$550001,MİZAN!A62,MUAVİN!$G$3:$G$550001) -> 0 | D62: =SUMIF(MUAVİN!$A$3:$A$550001,MİZAN!A62,MUAVİN!$H$3:$H$550001) -> 0 | E62: 0 | F62: 0
A63: 260 | B63: HAKLAR | C63: =SUMIF(MUAVİN!$A$3:$A$550001,MİZAN!A63,MUAVİN!$G$3:$G$550001) -> 0 | D63: =SUMIF(MUAVİN!$A$3:$A$550001,MİZAN!A63,MUAVİN!$H$3:$H$550001) -> 0 | E63: 0 | F63: 0
A64: 261 | B64: ŞERİFİYE | C64: =SUMIF(MUAVİN!$A$3:$A$550001,MİZAN!A64,MUAVİN!$G$3:$G$550001) -> 0 | D64: =SUMIF(MUAVİN!$A$3:$A$550001,MİZAN!A64,MUAVİN!$H$3:$H$550001) -> 0 | E64: 0 | F64: 0
A65: 262 | B65: KURULUŞ VE ÖRGÜTLENME GİDERLERİ | C65: =SUMIF(MUAVİN!$A$3:$A$550001,MİZAN!A65,MUAVİN!$G$3:$G$550001) -> 0 | D65: =SUMIF(MUAVİN!$A$3:$A$550001,MİZAN!A65,MUAVİN!$H$3:$H$550001) -> 0 | E65: 0 | F65: 0
A66: 263 | B66: ARAŞTIRMA VE GELİŞTİRME GİDERLERİ | C66: 0 | D66: 0 | E66: 0 | F66: 0
A67: 264 | B67: ÖZEL MALİYETLER | C67: =SUMIF(MUAVİN!$A$3:$A$177470,MİZAN!A67,MUAVİN!$G$3:$G$177470) -> 0 | D67: =SUMIF(MUAVİN!$A$3:$A$177470,MİZAN!A67,MUAVİN!$H$3:$H$177470) -> 0 | E67: 0 | F67: 0
A68: 267 | B68: DİĞER MADDİ OLMAYAN DURAN VARLIKLAR | C68: =SUMIF(MUAVİN!$A$3:$A$177470,MİZAN!A68,MUAVİN!$G$3:$G$177470) -> 0 | D68: =SUMIF(MUAVİN!$A$3:$A$177470,MİZAN!A68,MUAVİN!$H$3:$H$177470) -> 0 | E68: 0 | F68: 0
A69: 268 | B69: BİRİKMİŞ AMORTİSMANLAR (-) | C69: =SUMIF(MUAVİN!$A$3:$A$177470,MİZAN!A69,MUAVİN!$G$3:$G$177470) -> 0 | D69: =SUMIF(MUAVİN!$A$3:$A$177470,MİZAN!A69,MUAVİN!$H$3:$H$177470) -> 0 | E69: 0 | F69: 0
A70: 269 | B70: VERİLEN AVANSLAR | C70: =SUMIF(MUAVİN!$A$3:$A$177470,MİZAN!A70,MUAVİN!$G$3:$G$177470) -> 0 | D70: =SUMIF(MUAVİN!$A$3:$A$177470,MİZAN!A70,MUAVİN!$H$3:$H$177470) -> 0 | E70: 0 | F70: 0
A71: 280 | B71: GELECEK YILLARA AİT GİDERLER | C71: =SUMIF(MUAVİN!$A$3:$A$177470,MİZAN!A71,MUAVİN!$G$3:$G$177470) -> 0 | D71: =SUMIF(MUAVİN!$A$3:$A$177470,MİZAN!A71,MUAVİN!$H$3:$H$177470) -> 0 | E71: 0 | F71: 0
A72: 281 | B72: GELİR TAHAKKUKLARI | C72: =SUMIF(MUAVİN!$A$3:$A$177470,MİZAN!A72,MUAVİN!$G$3:$G$177470) -> 0 | D72: =SUMIF(MUAVİN!$A$3:$A$177470,MİZAN!A72,MUAVİN!$H$3:$H$177470) -> 0 | E72: 0 | F72: 0
A73: 296 | B73: GEÇİCİ HESAP | C73: =SUMIF(MUAVİN!$A$3:$A$177470,MİZAN!A73,MUAVİN!$G$3:$G$177470) -> 0 | D73: =SUMIF(MUAVİN!$A$3:$A$177470,MİZAN!A73,MUAVİN!$H$3:$H$177470) -> 0 | E73: =IF(C73>D73,C73-D73,0) -> 0 | F73: =IF(D73>C73,D73-C73,0) -> 0
A74: 297 | B74: DİĞER ÇEŞİTLİ DURAN VARLIKLAR | C74: =SUMIF(MUAVİN!$A$3:$A$177470,MİZAN!A74,MUAVİN!$G$3:$G$177470) -> 0 | D74: =SUMIF(MUAVİN!$A$3:$A$177470,MİZAN!A74,MUAVİN!$H$3:$H$177470) -> 0 | E74: 0 | F74: 0
A75: 300 | B75: BANKA KREDİLERİ | C75: =SUMIF(MUAVİN!$A$3:$A$177470,MİZAN!A75,MUAVİN!$G$3:$G$177470) -> 0 | D75: =SUMIF(MUAVİN!$A$3:$A$177470,MİZAN!A75,MUAVİN!$H$3:$H$177470) -> 0 | E75: 0 | F75: 0
A76: 301 | B76: FİNANSAL KİRALAMADAN DOĞAN BORÇLAR | C76: =SUMIF(MUAVİN!$A$3:$A$177470,MİZAN!A76,MUAVİN!$G$3:$G$177470) -> 0 | D76: =SUMIF(MUAVİN!$A$3:$A$177470,MİZAN!A76,MUAVİN!$H$3:$H$177470) -> 0 | E76: 0 | F76: 0
A77: 302 | B77: ERT. FİN. KİR. BORÇLANMA MAL (-) | C77: =SUMIF(MUAVİN!$A$3:$A$177470,MİZAN!A77,MUAVİN!$G$3:$G$177470) -> 0 | D77: =SUMIF(MUAVİN!$A$3:$A$177470,MİZAN!A77,MUAVİN!$H$3:$H$177470) -> 0 | E77: 0 | F77: 0
A78: 309 | B78: DİĞER MALİ BORÇLAR | C78: =SUMIF(MUAVİN!$A$3:$A$177470,MİZAN!A78,MUAVİN!$G$3:$G$177470) -> 0 | D78: =SUMIF(MUAVİN!$A$3:$A$177470,MİZAN!A78,MUAVİN!$H$3:$H$177470) -> 0 | E78: 0 | F78: 0
A79: 320 | B79: SATICILAR | C79: =SUMIF(MUAVİN!$A$3:$A$177470,MİZAN!A79,MUAVİN!$G$3:$G$177470) -> 0 | D79: =SUMIF(MUAVİN!$A$3:$A$177470,MİZAN!A79,MUAVİN!$H$3:$H$177470) -> 0 | E79: 0 | F79: 0
A80: 321 | B80: BORÇ SENETLERİ | C80: =SUMIF(MUAVİN!$A$3:$A$177470,MİZAN!A80,MUAVİN!$G$3:$G$177470) -> 0 | D80: =SUMIF(MUAVİN!$A$3:$A$177470,MİZAN!A80,MUAVİN!$H$3:$H$177470) -> 0 | E80: 0 | F80: 0
A81: 326 | B81: ALINAN DEPOZİTO VE AVANSLAR | C81: =SUMIF(MUAVİN!$A$3:$A$177470,MİZAN!A81,MUAVİN!$G$3:$G$177470) -> 0 | D81: =SUMIF(MUAVİN!$A$3:$A$177470,MİZAN!A81,MUAVİN!$H$3:$H$177470) -> 0 | E81: 0 | F81: 0
A82: 329 | B82: DİĞER TİCARİ BORÇLAR | C82: =SUMIF(MUAVİN!$A$3:$A$177470,MİZAN!A82,MUAVİN!$G$3:$G$177470) -> 0 | D82: =SUMIF(MUAVİN!$A$3:$A$177470,MİZAN!A82,MUAVİN!$H$3:$H$177470) -> 0 | E82: 0 | F82: 0
A83: 331 | B83: ORTAKLARA BORÇLAR | C83: =SUMIF(MUAVİN!$A$3:$A$177470,MİZAN!A83,MUAVİN!$G$3:$G$177470) -> 0 | D83: =SUMIF(MUAVİN!$A$3:$A$177470,MİZAN!A83,MUAVİN!$H$3:$H$177470) -> 0 | E83: 0 | F83: 0
A84: 332 | B84: İŞTİRAKLERE BORÇLAR | C84: =SUMIF(MUAVİN!$A$3:$A$177470,MİZAN!A84,MUAVİN!$G$3:$G$177470) -> 0 | D84: =SUMIF(MUAVİN!$A$3:$A$177470,MİZAN!A84,MUAVİN!$H$3:$H$177470) -> 0 | E84: 0 | F84: 0
A85: 333 | B85: BAĞLI ORTAKLIKLARA BORÇLAR | C85: =SUMIF(MUAVİN!$A$3:$A$177470,MİZAN!A85,MUAVİN!$G$3:$G$177470) -> 0 | D85: =SUMIF(MUAVİN!$A$3:$A$177470,MİZAN!A85,MUAVİN!$H$3:$H$177470) -> 0 | E85: 0 | F85: 0
A86: 335 | B86: PERSONELE BORÇLAR | C86: =SUMIF(MUAVİN!$A$3:$A$177470,MİZAN!A86,MUAVİN!$G$3:$G$177470) -> 0 | D86: =SUMIF(MUAVİN!$A$3:$A$177470,MİZAN!A86,MUAVİN!$H$3:$H$177470) -> 0 | E86: 0 | F86: 0
A87: 336 | B87: DİĞER ÇEŞİTLİ BORÇLAR | C87: =SUMIF(MUAVİN!$A$3:$A$177470,MİZAN!A87,MUAVİN!$G$3:$G$177470) -> 0 | D87: =SUMIF(MUAVİN!$A$3:$A$177470,MİZAN!A87,MUAVİN!$H$3:$H$177470) -> 0 | E87: 0 | F87: 0
A88: 340 | B88: ALINAN SİPARİŞ AVANSLARI | C88: =SUMIF(MUAVİN!$A$3:$A$177470,MİZAN!A88,MUAVİN!$G$3:$G$177470) -> 0 | D88: =SUMIF(MUAVİN!$A$3:$A$177470,MİZAN!A88,MUAVİN!$H$3:$H$177470) -> 0 | E88: 0 | F88: 0
A89: 349 | B89: ALINAN DİĞER AVANSLAR | C89: =SUMIF(MUAVİN!$A$3:$A$177470,MİZAN!A89,MUAVİN!$G$3:$G$177470) -> 0 | D89: =SUMIF(MUAVİN!$A$3:$A$177470,MİZAN!A89,MUAVİN!$H$3:$H$177470) -> 0 | E89: 0 | F89: 0
A90: 350 | B90: YILLAR SAİR İNŞ VE HAK EDİŞ BEDELİ | C90: =SUMIF(MUAVİN!$A$3:$A$177470,MİZAN!A90,MUAVİN!$G$3:$G$177470) -> 0 | D90: =SUMIF(MUAVİN!$A$3:$A$177470,MİZAN!A90,MUAVİN!$H$3:$H$177470) -> 0 | E90: 0 | F90: 0
A91: 360 | B91: ÖDENECEK VERGİ VE FONLAR | C91: =SUMIF(MUAVİN!$A$3:$A$177470,MİZAN!A91,MUAVİN!$G$3:$G$177470) -> 0 | D91: =SUMIF(MUAVİN!$A$3:$A$177470,MİZAN!A91,MUAVİN!$H$3:$H$177470) -> 0 | E91: 0 | F91: 0
A92: 361 | B92: ÖDENECEK SOSYAL GÜVENLİK KESİNTİLERİ | C92: =SUMIF(MUAVİN!$A$3:$A$177470,MİZAN!A92,MUAVİN!$G$3:$G$177470) -> 0 | D92: =SUMIF(MUAVİN!$A$3:$A$177470,MİZAN!A92,MUAVİN!$H$3:$H$177470) -> 0 | E92: 0 | F92: 0
A93: 368 | B93: VADESİ ERTLENMİŞ VEYA TAKS. YÜKÜMLÜLÜKLER | C93: =SUMIF(MUAVİN!$A$3:$A$177470,MİZAN!A93,MUAVİN!$G$3:$G$177470) -> 0 | D93: =SUMIF(MUAVİN!$A$3:$A$177470,MİZAN!A93,MUAVİN!$H$3:$H$177470) -> 0 | E93: 0 | F93: 0
A94: 369 | B94: ÖDENECEK DİĞER YÜKÜMLÜLÜKLER | C94: =SUMIF(MUAVİN!$A$3:$A$177470,MİZAN!A94,MUAVİN!$G$3:$G$177470) -> 0 | D94: =SUMIF(MUAVİN!$A$3:$A$177470,MİZAN!A94,MUAVİN!$H$3:$H$177470) -> 0 | E94: 0 | F94: 0
A95: 370 | B95: Dönem Karı Vergi ve Diğer | C95: =SUMIF(MUAVİN!$A$3:$A$177470,MİZAN!A95,MUAVİN!$G$3:$G$177470) -> 0 | D95: =SUMIF(MUAVİN!$A$3:$A$177470,MİZAN!A95,MUAVİN!$H$3:$H$177470) -> 0 | E95: 0 | F95: 0
A96: 371 | B96: Dönem Karının Peşin Ödenen Vergi | C96: =SUMIF(MUAVİN!$A$3:$A$177470,MİZAN!A96,MUAVİN!$G$3:$G$177470) -> 0 | D96: =SUMIF(MUAVİN!$A$3:$A$177470,MİZAN!A96,MUAVİN!$H$3:$H$177470) -> 0 | E96: 0 | F96: 0
A97: 372 | B97: KIDEM TAZMİNAT KARŞILIĞI | C97: =SUMIF(MUAVİN!$A$3:$A$177470,MİZAN!A97,MUAVİN!$G$3:$G$177470) -> 0 | D97: =SUMIF(MUAVİN!$A$3:$A$177470,MİZAN!A97,MUAVİN!$H$3:$H$177470) -> 0 | E97: 0 | F97: 0
A98: 373 | B98: MALİYET GİDERLERİ KARŞILIĞI (-) | C98: =SUMIF(MUAVİN!$A$3:$A$177470,MİZAN!A98,MUAVİN!$G$3:$G$177470) -> 0 | D98: =SUMIF(MUAVİN!$A$3:$A$177470,MİZAN!A98,MUAVİN!$H$3:$H$177470) -> 0 | E98: 0 | F98: 0
A99: 380 | B99: GELECEK AYLARA AİT GİDERLER | C99: =SUMIF(MUAVİN!$A$3:$A$177470,MİZAN!A99,MUAVİN!$G$3:$G$177470) -> 0 | D99: =SUMIF(MUAVİN!$A$3:$A$177470,MİZAN!A99,MUAVİN!$H$3:$H$177470) -> 0 | E99: 0 | F99: 0
A100: 381 | B100: GİDER TAHAKKUKLARI | C100: =SUMIF(MUAVİN!$A$3:$A$177470,MİZAN!A100,MUAVİN!$G$3:$G$177470) -> 0 | D100: =SUMIF(MUAVİN!$A$3:$A$177470,MİZAN!A100,MUAVİN!$H$3:$H$177470) -> 0 | E100: 0 | F100: 0
A101: 391 | B101: HESAPLANAN KDV | C101: =SUMIF(MUAVİN!$A$3:$A$177470,MİZAN!A101,MUAVİN!$G$3:$G$177470) -> 0 | D101: =SUMIF(MUAVİN!$A$3:$A$177470,MİZAN!A101,MUAVİN!$H$3:$H$177470) -> 0 | E101: 0 | F101: 0
A102: 392 | B102: DİĞER KDV | C102: =SUMIF(MUAVİN!$A$3:$A$177470,MİZAN!A102,MUAVİN!$G$3:$G$177470) -> 0 | D102: =SUMIF(MUAVİN!$A$3:$A$177470,MİZAN!A102,MUAVİN!$H$3:$H$177470) -> 0 | E102: 0 | F102: 0
A103: 393 | B103: MERKEZ VE ŞUBE CARİ HESAP | C103: =SUMIF(MUAVİN!$A$3:$A$177470,MİZAN!A103,MUAVİN!$G$3:$G$177470) -> 0 | D103: =SUMIF(MUAVİN!$A$3:$A$177470,MİZAN!A103,MUAVİN!$H$3:$H$177470) -> 0 | E103: 0 | F103: 0
A104: 397 | B104: SAYIM VE TESELLÜM FAZLALIKLARI | C104: =SUMIF(MUAVİN!$A$3:$A$177470,MİZAN!A104,MUAVİN!$G$3:$G$177470) -> 0 | D104: =SUMIF(MUAVİN!$A$3:$A$177470,MİZAN!A104,MUAVİN!$H$3:$H$177470) -> 0 | E104: 0 | F104: 0
A105: 399 | B105: DİĞER YABANCI ÇEŞİTLİ KAYNAKLAR | C105: =SUMIF(MUAVİN!$A$3:$A$177470,MİZAN!A105,MUAVİN!$G$3:$G$177470) -> 0 | D105: =SUMIF(MUAVİN!$A$3:$A$177470,MİZAN!A105,MUAVİN!$H$3:$H$177470) -> 0 | E105: =IF(C105>D105,C105-D105,0) -> 0 | F105: =IF(D105>C105,D105-C105,0) -> 0
A106: 400 | B106: BANKA KREDİLERİ | C106: =SUMIF(MUAVİN!$A$3:$A$177470,MİZAN!A106,MUAVİN!$G$3:$G$177470) -> 0 | D106: =SUMIF(MUAVİN!$A$3:$A$177470,MİZAN!A106,MUAVİN!$H$3:$H$177470) -> 0 | E106: 0 | F106: 0
A107: 401 | B107: FİNANSAL KİRALAMADAN DOĞAN BORÇLAR | C107: =SUMIF(MUAVİN!$A$3:$A$177470,MİZAN!A107,MUAVİN!$G$3:$G$177470) -> 0 | D107: =SUMIF(MUAVİN!$A$3:$A$177470,MİZAN!A107,MUAVİN!$H$3:$H$177470) -> 0 | E107: 0 | F107: 0
A108: 409 | B108: DİĞER MALİ BORÇLAR | C108: =SUMIF(MUAVİN!$A$3:$A$177470,MİZAN!A108,MUAVİN!$G$3:$G$177470) -> 0 | D108: =SUMIF(MUAVİN!$A$3:$A$177470,MİZAN!A108,MUAVİN!$H$3:$H$177470) -> 0 | E108: 0 | F108: 0
A109: 402 | B109: ERT. FİN. KİR. BORÇLANMA MAL (-) | C109: =SUMIF(MUAVİN!$A$3:$A$177470,MİZAN!A109,MUAVİN!$G$3:$G$177470) -> 0 | D109: =SUMIF(MUAVİN!$A$3:$A$177470,MİZAN!A109,MUAVİN!$H$3:$H$177470) -> 0 | E109: 0 | F109: 0
A110: 420 | B110: SATICILAR | C110: =SUMIF(MUAVİN!$A$3:$A$177470,MİZAN!A110,MUAVİN!$G$3:$G$177470) -> 0 | D110: =SUMIF(MUAVİN!$A$3:$A$177470,MİZAN!A110,MUAVİN!$H$3:$H$177470) -> 0 | E110: 0 | F110: 0
A111: 421 | B111: BORÇ SENETLERİ | C111: =SUMIF(MUAVİN!$A$3:$A$177470,MİZAN!A111,MUAVİN!$G$3:$G$177470) -> 0 | D111: =SUMIF(MUAVİN!$A$3:$A$177470,MİZAN!A111,MUAVİN!$H$3:$H$177470) -> 0 | E111: 0 | F111: 0
A112: 426 | B112: ALINAN DEPOZİTO VE AVANSLAR | C112: =SUMIF(MUAVİN!$A$3:$A$177470,MİZAN!A112,MUAVİN!$G$3:$G$177470) -> 0 | D112: =SUMIF(MUAVİN!$A$3:$A$177470,MİZAN!A112,MUAVİN!$H$3:$H$177470) -> 0 | E112: 0 | F112: 0
A113: 429 | B113: DİĞER TİCARİ BORÇLAR | C113: =SUMIF(MUAVİN!$A$3:$A$177470,MİZAN!A113,MUAVİN!$G$3:$G$177470) -> 0 | D113: =SUMIF(MUAVİN!$A$3:$A$177470,MİZAN!A113,MUAVİN!$H$3:$H$177470) -> 0 | E113: =IF(C113>D113,C113-D113,0) -> 0 | F113: =IF(D113>C113,D113-C113,0) -> 0
A114: 431 | B114: ORTAKLARA BORÇLAR | C114: =SUMIF(MUAVİN!$A$3:$A$177470,MİZAN!A114,MUAVİN!$G$3:$G$177470) -> 0 | D114: =SUMIF(MUAVİN!$A$3:$A$177470,MİZAN!A114,MUAVİN!$H$3:$H$177470) -> 0 | E114: 0 | F114: 0
A115: 432 | B115: İŞTİRAKLERE BORÇLAR | C115: =SUMIF(MUAVİN!$A$3:$A$177470,MİZAN!A115,MUAVİN!$G$3:$G$177470) -> 0 | D115: =SUMIF(MUAVİN!$A$3:$A$177470,MİZAN!A115,MUAVİN!$H$3:$H$177470) -> 0 | E115: =IF(C115>D115,C115-D115,0) -> 0 | F115: =IF(D115>C115,D115-C115,0) -> 0
A116: 433 | B116: BAĞLI ORTAKLIKLARA BORÇLAR | C116: =SUMIF(MUAVİN!$A$3:$A$177470,MİZAN!A116,MUAVİN!$G$3:$G$177470) -> 0 | D116: =SUMIF(MUAVİN!$A$3:$A$177470,MİZAN!A116,MUAVİN!$H$3:$H$177470) -> 0 | E116: 0 | F116: 0
A117: 438 | B117: KAMUYA OLAN ERTELENMİŞ BORÇLAR | C117: =SUMIF(MUAVİN!$A$3:$A$177470,MİZAN!A117,MUAVİN!$G$3:$G$177470) -> 0 | D117: =SUMIF(MUAVİN!$A$3:$A$177470,MİZAN!A117,MUAVİN!$H$3:$H$177470) -> 0 | E117: =IF(C117>D117,C117-D117,0) -> 0 | F117: =IF(D117>C117,D117-C117,0) -> 0
A118: 440 | B118: ALINAN SİPARİŞ AVANSLARI | C118: =SUMIF(MUAVİN!$A$3:$A$177470,MİZAN!A118,MUAVİN!$G$3:$G$177470) -> 0 | D118: =SUMIF(MUAVİN!$A$3:$A$177470,MİZAN!A118,MUAVİN!$H$3:$H$177470) -> 0 | E118: =IF(C118>D118,C118-D118,0) -> 0 | F118: =IF(D118>C118,D118-C118,0) -> 0
A119: 449 | B119: ALINAN DİĞER AVANSLAR | C119: =SUMIF(MUAVİN!$A$3:$A$177470,MİZAN!A119,MUAVİN!$G$3:$G$177470) -> 0 | D119: =SUMIF(MUAVİN!$A$3:$A$177470,MİZAN!A119,MUAVİN!$H$3:$H$177470) -> 0 | E119: 0 | F119: 0
A120: 472 | B120: KIDEM TAZMİNAT KARŞILIĞI | C120: =SUMIF(MUAVİN!$A$3:$A$177470,MİZAN!A120,MUAVİN!$G$3:$G$177470) -> 0 | D120: =SUMIF(MUAVİN!$A$3:$A$177470,MİZAN!A120,MUAVİN!$H$3:$H$177470) -> 0 | E120: =IF(C120>D120,C120-D120,0) -> 0 | F120: =IF(D120>C120,D120-C120,0) -> 0
A121: 480 | B121: GELECEK YILLARA AİT GİDERLER | C121: =SUMIF(MUAVİN!$A$3:$A$177470,MİZAN!A121,MUAVİN!$G$3:$G$177470) -> 0 | D121: =SUMIF(MUAVİN!$A$3:$A$177470,MİZAN!A121,MUAVİN!$H$3:$H$177470) -> 0 | E121: 0 | F121: 0
A122: 481 | B122: GİDER TAHAKKUKLARI | C122: =SUMIF(MUAVİN!$A$3:$A$177470,MİZAN!A122,MUAVİN!$G$3:$G$177470) -> 0 | D122: =SUMIF(MUAVİN!$A$3:$A$177470,MİZAN!A122,MUAVİN!$H$3:$H$177470) -> 0 | E122: 0 | F122: 0
A123: 500 | B123: SERMAYE | C123: =SUMIF(MUAVİN!$A$3:$A$177470,MİZAN!A123,MUAVİN!$G$3:$G$177470) -> 0 | D123: =SUMIF(MUAVİN!$A$3:$A$177470,MİZAN!A123,MUAVİN!$H$3:$H$177470) -> 2500000 | E123: 0 | F123: 2500000
A124: 501 | B124: ÖDENMEMİŞ SERMAYE | C124: =SUMIF(MUAVİN!$A$3:$A$177470,MİZAN!A124,MUAVİN!$G$3:$G$177470) -> 0 | D124: =SUMIF(MUAVİN!$A$3:$A$177470,MİZAN!A124,MUAVİN!$H$3:$H$177470) -> 0 | E124: 0 | F124: 0
A125: 502 | B125: SERMAYE DÜZELTME OLUMLU FARKLAR | C125: =SUMIF(MUAVİN!$A$3:$A$177470,MİZAN!A125,MUAVİN!$G$3:$G$177470) -> 0 | D125: =SUMIF(MUAVİN!$A$3:$A$177470,MİZAN!A125,MUAVİN!$H$3:$H$177470) -> 0 | E125: 0 | F125: 0
A126: 525 | B126: EMTİA MAL | C126: =SUMIF(MUAVİN!$A$3:$A$177470,MİZAN!A126,MUAVİN!$G$3:$G$177470) -> 0 | D126: =SUMIF(MUAVİN!$A$3:$A$177470,MİZAN!A126,MUAVİN!$H$3:$H$177470) -> 0 | E126: 0 | F126: 0
A127: 529 | B127: DİĞER SERMAYE YEDEKLERİ | C127: =SUMIF(MUAVİN!$A$3:$A$177470,MİZAN!A127,MUAVİN!$G$3:$G$177470) -> 0 | D127: =SUMIF(MUAVİN!$A$3:$A$177470,MİZAN!A127,MUAVİN!$H$3:$H$177470) -> 0 | E127: 0 | F127: 0
A128: 540 | B128: YASAL YEDEKLER | C128: =SUMIF(MUAVİN!$A$3:$A$177470,MİZAN!A128,MUAVİN!$G$3:$G$177470) -> 0 | D128: =SUMIF(MUAVİN!$A$3:$A$177470,MİZAN!A128,MUAVİN!$H$3:$H$177470) -> 0 | E128: 0 | F128: 0
A129: 541 | B129: STATÜ YEDEKLER | C129: =SUMIF(MUAVİN!$A$3:$A$177470,MİZAN!A129,MUAVİN!$G$3:$G$177470) -> 0 | D129: =SUMIF(MUAVİN!$A$3:$A$177470,MİZAN!A129,MUAVİN!$H$3:$H$177470) -> 0 | E129: 0 | F129: 0
A130: 542 | B130: OLAĞANÜSTÜ YEDEKLER | C130: =SUMIF(MUAVİN!$A$3:$A$177470,MİZAN!A130,MUAVİN!$G$3:$G$177470) -> 0 | D130: =SUMIF(MUAVİN!$A$3:$A$177470,MİZAN!A130,MUAVİN!$H$3:$H$177470) -> 0 | E130: 0 | F130: 0
A131: 549 | B131: ÖZEL FONLAR | C131: =SUMIF(MUAVİN!$A$3:$A$177470,MİZAN!A131,MUAVİN!$G$3:$G$177470) -> 0 | D131: =SUMIF(MUAVİN!$A$3:$A$177470,MİZAN!A131,MUAVİN!$H$3:$H$177470) -> 0 | E131: 0 | F131: 0
A132: 570 | B132: GEÇMİŞ YIL KARLARI | C132: =SUMIF(MUAVİN!$A$3:$A$177470,MİZAN!A132,MUAVİN!$G$3:$G$177470) -> 0 | D132: =SUMIF(MUAVİN!$A$3:$A$177470,MİZAN!A132,MUAVİN!$H$3:$H$177470) -> 0 | E132: 0 | F132: 0
A133: 580 | B133: GEÇMİŞ YILLAR ZARARLARI | C133: =SUMIF(MUAVİN!$A$3:$A$177470,MİZAN!A133,MUAVİN!$G$3:$G$177470) -> 0 | D133: =SUMIF(MUAVİN!$A$3:$A$177470,MİZAN!A133,MUAVİN!$H$3:$H$177470) -> 0 | E133: 0 | F133: 0
A134: 590 | B134: DÖNEM NET KARI | C134: =SUMIF(MUAVİN!$A$3:$A$177470,MİZAN!A134,MUAVİN!$G$3:$G$177470) -> 0 | D134: =SUMIF(MUAVİN!$A$3:$A$177470,MİZAN!A134,MUAVİN!$H$3:$H$177470) -> 0 | E134: 0 | F134: 0
A135: 591 | B135: DÖNEM NET ZARARI (-) | C135: =SUMIF(MUAVİN!$A$3:$A$177470,MİZAN!A135,MUAVİN!$G$3:$G$177470) -> 0 | D135: =SUMIF(MUAVİN!$A$3:$A$177470,MİZAN!A135,MUAVİN!$H$3:$H$177470) -> 0 | E135: 0 | F135: 0
A136: 600 | B136: YURTİÇİ SATIŞLAR | C136: =SUMIF(MUAVİN!$A$3:$A$177470,MİZAN!A136,MUAVİN!$G$3:$G$177470) -> 0 | D136: =SUMIF(MUAVİN!$A$3:$A$177470,MİZAN!A136,MUAVİN!$H$3:$H$177470) -> 5500 | E136: 0 | F136: 5500
A137: 601 | B137: YURTDIŞI SATIŞLAR | C137: =SUMIF(MUAVİN!$A$3:$A$177470,MİZAN!A137,MUAVİN!$G$3:$G$177470) -> 0 | D137: =SUMIF(MUAVİN!$A$3:$A$177470,MİZAN!A137,MUAVİN!$H$3:$H$177470) -> 0 | E137: 0 | F137: 0
A138: 602 | B138: DİĞER GELİRLER | C138: =SUMIF(MUAVİN!$A$3:$A$177470,MİZAN!A138,MUAVİN!$G$3:$G$177470) -> 0 | D138: =SUMIF(MUAVİN!$A$3:$A$177470,MİZAN!A138,MUAVİN!$H$3:$H$177470) -> 0 | E138: 0 | F138: 0
A139: 610 | B139: SATIŞTAN İADELER (-) | C139: =SUMIF(MUAVİN!$A$3:$A$177470,MİZAN!A139,MUAVİN!$G$3:$G$177470) -> 400 | D139: =SUMIF(MUAVİN!$A$3:$A$177470,MİZAN!A139,MUAVİN!$H$3:$H$177470) -> 0 | E139: 400 | F139: 0
A140: 611 | B140: SATIŞTAN İSKONTOLAR (-) | C140: =SUMIF(MUAVİN!$A$3:$A$177470,MİZAN!A140,MUAVİN!$G$3:$G$177470) -> 0 | D140: =SUMIF(MUAVİN!$A$3:$A$177470,MİZAN!A140,MUAVİN!$H$3:$H$177470) -> 0 | E140: 0 | F140: 0
A141: 612 | B141: DİĞER İNDİRİMLER | C141: =SUMIF(MUAVİN!$A$3:$A$177470,MİZAN!A141,MUAVİN!$G$3:$G$177470) -> 0 | D141: =SUMIF(MUAVİN!$A$3:$A$177470,MİZAN!A141,MUAVİN!$H$3:$H$177470) -> 0 | E141: 0 | F141: 0
A142: 620 | B142: SATILAN MAMUL MALİYETİ (-) | C142: =SUMIF(MUAVİN!$A$3:$A$177470,MİZAN!A142,MUAVİN!$G$3:$G$177470) -> 0 | D142: =SUMIF(MUAVİN!$A$3:$A$177470,MİZAN!A142,MUAVİN!$H$3:$H$177470) -> 0 | E142: 0 | F142: 0
A143: 621 | B143: SATILAN TİCARİ MALIN MALİYETİ (-) | C143: =SUMIF(MUAVİN!$A$3:$A$177470,MİZAN!A143,MUAVİN!$G$3:$G$177470) -> 0 | D143: =SUMIF(MUAVİN!$A$3:$A$177470,MİZAN!A143,MUAVİN!$H$3:$H$177470) -> 0 | E143: 0 | F143: 0
A144: 622 | B144: SATILAN HİZMET MALİYETİ (-) | C144: =SUMIF(MUAVİN!$A$3:$A$177470,MİZAN!A144,MUAVİN!$G$3:$G$177470) -> 0 | D144: =SUMIF(MUAVİN!$A$3:$A$177470,MİZAN!A144,MUAVİN!$H$3:$H$177470) -> 0 | E144: 0 | F144: 0
A145: 623 | B145: DİĞER SATIŞLARIN MALİYETİ (-) | C145: =SUMIF(MUAVİN!$A$3:$A$177470,MİZAN!A145,MUAVİN!$G$3:$G$177470) -> 0 | D145: =SUMIF(MUAVİN!$A$3:$A$177470,MİZAN!A145,MUAVİN!$H$3:$H$177470) -> 0 | E145: 0 | F145: 0
A146: 630 | B146: ARAŞTIRMA VE GELİŞTİRME GİDERLERİ | C146: =SUMIF(MUAVİN!$A$3:$A$177470,MİZAN!A146,MUAVİN!$G$3:$G$177470) -> 0 | D146: =SUMIF(MUAVİN!$A$3:$A$177470,MİZAN!A146,MUAVİN!$H$3:$H$177470) -> 0 | E146: 0 | F146: 0
A147: 631 | B147: PAZARLAMA, SATIŞ VE DAĞITIM GİDERLERİ (-) | C147: =SUMIF(MUAVİN!$A$3:$A$177470,MİZAN!A147,MUAVİN!$G$3:$G$177470) -> 0 | D147: =SUMIF(MUAVİN!$A$3:$A$177470,MİZAN!A147,MUAVİN!$H$3:$H$177470) -> 0 | E147: 0 | F147: 0
A148: 632 | B148: GENEL YÖNETİM GİDERLERİ (-) | C148: =SUMIF(MUAVİN!$A$3:$A$177470,MİZAN!A148,MUAVİN!$G$3:$G$177470) -> 0 | D148: =SUMIF(MUAVİN!$A$3:$A$177470,MİZAN!A148,MUAVİN!$H$3:$H$177470) -> 0 | E148: 0 | F148: 0
A149: 640 | B149: İŞTİRAKLERDEN TEMETTÜ GELİRLERİ | C149: =SUMIF(MUAVİN!$A$3:$A$177470,MİZAN!A149,MUAVİN!$G$3:$G$177470) -> 0 | D149: =SUMIF(MUAVİN!$A$3:$A$177470,MİZAN!A149,MUAVİN!$H$3:$H$177470) -> 0 | E149: 0 | F149: 0
A150: 641 | B150: BAĞLI ORTAKLIKLARDAN TEMETTÜ GELİRLERİ | C150: =SUMIF(MUAVİN!$A$3:$A$177470,MİZAN!A150,MUAVİN!$G$3:$G$177470) -> 0 | D150: =SUMIF(MUAVİN!$A$3:$A$177470,MİZAN!A150,MUAVİN!$H$3:$H$177470) -> 0 | E150: 0 | F150: 0
A151: 642 | B151: FAİZ GELİRLERİ | C151: =SUMIF(MUAVİN!$A$3:$A$177470,MİZAN!A151,MUAVİN!$G$3:$G$177470) -> 0 | D151: =SUMIF(MUAVİN!$A$3:$A$177470,MİZAN!A151,MUAVİN!$H$3:$H$177470) -> 0 | E151: 0 | F151: 0
A152: 643 | B152: KOMİSYON GELİRLERİ | C152: =SUMIF(MUAVİN!$A$3:$A$177470,MİZAN!A152,MUAVİN!$G$3:$G$177470) -> 0 | D152: =SUMIF(MUAVİN!$A$3:$A$177470,MİZAN!A152,MUAVİN!$H$3:$H$177470) -> 0 | E152: 0 | F152: 0
A153: 644 | B153: KONUSU KALMAYAN KARŞILIKLAR | C153: =SUMIF(MUAVİN!$A$3:$A$177470,MİZAN!A153,MUAVİN!$G$3:$G$177470) -> 0 | D153: =SUMIF(MUAVİN!$A$3:$A$177470,MİZAN!A153,MUAVİN!$H$3:$H$177470) -> 0 | E153: 0 | F153: 0
A154: 645 | B154: MENKUL KIYMET SATIŞ KARI | C154: =SUMIF(MUAVİN!$A$3:$A$177470,MİZAN!A154,MUAVİN!$G$3:$G$177470) -> 0 | D154: =SUMIF(MUAVİN!$A$3:$A$177470,MİZAN!A154,MUAVİN!$H$3:$H$177470) -> 0 | E154: 0 | F154: 0
A155: 646 | B155: KAMBİYO KARLARI | C155: =SUMIF(MUAVİN!$A$3:$A$177470,MİZAN!A155,MUAVİN!$G$3:$G$177470) -> 0 | D155: =SUMIF(MUAVİN!$A$3:$A$177470,MİZAN!A155,MUAVİN!$H$3:$H$177470) -> 0 | E155: 0 | F155: 0
A156: 649 | B156: FAALİYETLE İLGİLİ DİĞER GELİR VE KARLAR | C156: =SUMIF(MUAVİN!$A$3:$A$177470,MİZAN!A156,MUAVİN!$G$3:$G$177470) -> 0 | D156: =SUMIF(MUAVİN!$A$3:$A$177470,MİZAN!A156,MUAVİN!$H$3:$H$177470) -> 0 | E156: 0 | F156: 0
A157: 653 | B157: KOMİSYON GİDERLERİ | C157: =SUMIF(MUAVİN!$A$3:$A$177470,MİZAN!A157,MUAVİN!$G$3:$G$177470) -> 0 | D157: =SUMIF(MUAVİN!$A$3:$A$177470,MİZAN!A157,MUAVİN!$H$3:$H$177470) -> 0 | E157: 0 | F157: 0
A158: 654 | B158: Karşılık Giderlik | C158: =SUMIF(MUAVİN!$A$3:$A$177470,MİZAN!A158,MUAVİN!$G$3:$G$177470) -> 0 | D158: =SUMIF(MUAVİN!$A$3:$A$177470,MİZAN!A158,MUAVİN!$H$3:$H$177470) -> 0 | E158: 0 | F158: 0
A159: 655 | B159: MENKUL KITMET SATIŞ ZARARLARI | C159: =SUMIF(MUAVİN!$A$3:$A$177470,MİZAN!A159,MUAVİN!$G$3:$G$177470) -> 0 | D159: =SUMIF(MUAVİN!$A$3:$A$177470,MİZAN!A159,MUAVİN!$H$3:$H$177470) -> 0 | E159: 0 | F159: 0
A160: 656 | B160: KAMBİYO ZARARLARI (-) | C160: =SUMIF(MUAVİN!$A$3:$A$177470,MİZAN!A160,MUAVİN!$G$3:$G$177470) -> 0 | D160: =SUMIF(MUAVİN!$A$3:$A$177470,MİZAN!A160,MUAVİN!$H$3:$H$177470) -> 0 | E160: 0 | F160: 0
A161: 659 | B161: DİĞER OLAĞAN GİDER VE ZARARLAR (-) | C161: =SUMIF(MUAVİN!$A$3:$A$177470,MİZAN!A161,MUAVİN!$G$3:$G$177470) -> 0 | D161: =SUMIF(MUAVİN!$A$3:$A$177470,MİZAN!A161,MUAVİN!$H$3:$H$177470) -> 0 | E161: 0 | F161: 0
A162: 660 | B162: KISA VADELİ BORÇLANMA GİDERLERİ (-) | C162: =SUMIF(MUAVİN!$A$3:$A$177470,MİZAN!A162,MUAVİN!$G$3:$G$177470) -> 0 | D162: =SUMIF(MUAVİN!$A$3:$A$177470,MİZAN!A162,MUAVİN!$H$3:$H$177470) -> 0 | E162: 0 | F162: 0
A163: 661 | B163: UZUN VADELİ BORÇLANMA GİDERLERİ (-) | C163: =SUMIF(MUAVİN!$A$3:$A$177470,MİZAN!A163,MUAVİN!$G$3:$G$177470) -> 0 | D163: =SUMIF(MUAVİN!$A$3:$A$177470,MİZAN!A163,MUAVİN!$H$3:$H$177470) -> 0 | E163: 0 | F163: 0
A164: 671 | B164: ÖNCEKİ DÖNEM GELİR VE KARLAR | C164: =SUMIF(MUAVİN!$A$3:$A$177470,MİZAN!A164,MUAVİN!$G$3:$G$177470) -> 0 | D164: =SUMIF(MUAVİN!$A$3:$A$177470,MİZAN!A164,MUAVİN!$H$3:$H$177470) -> 0 | E164: 0 | F164: 0
A165: 679 | B165: DİĞER OLAĞANDIŞI GELİR VE KARLAR | C165: =SUMIF(MUAVİN!$A$3:$A$177470,MİZAN!A165,MUAVİN!$G$3:$G$177470) -> 0 | D165: =SUMIF(MUAVİN!$A$3:$A$177470,MİZAN!A165,MUAVİN!$H$3:$H$177470) -> 0 | E165: 0 | F165: 0
A166: 680 | B166: ÇALIŞMAYAN KISIM GİDER VE ZARARLARI (-) | C166: =SUMIF(MUAVİN!$A$3:$A$177470,MİZAN!A166,MUAVİN!$G$3:$G$177470) -> 0 | D166: =SUMIF(MUAVİN!$A$3:$A$177470,MİZAN!A166,MUAVİN!$H$3:$H$177470) -> 0 | E166: 0 | F166: 0
A167: 681 | B167: ÖNCEKİ DÖNEM GİDER VE ZARARLARI (-) | C167: =SUMIF(MUAVİN!$A$3:$A$177470,MİZAN!A167,MUAVİN!$G$3:$G$177470) -> 0 | D167: =SUMIF(MUAVİN!$A$3:$A$177470,MİZAN!A167,MUAVİN!$H$3:$H$177470) -> 0 | E167: 0 | F167: 0
A168: 689 | B168: DİĞER OLAĞANDIŞI GİDER VE ZARARLAR (-) | C168: =SUMIF(MUAVİN!$A$3:$A$177470,MİZAN!A168,MUAVİN!$G$3:$G$177470) -> 0 | D168: =SUMIF(MUAVİN!$A$3:$A$177470,MİZAN!A168,MUAVİN!$H$3:$H$177470) -> 0 | E168: 0 | F168: 0
A169: 690 | B169: DÖNEM KARI VEYA ZARARI | C169: =SUMIF(MUAVİN!$A$3:$A$177470,MİZAN!A169,MUAVİN!$G$3:$G$177470) -> 0 | D169: =SUMIF(MUAVİN!$A$3:$A$177470,MİZAN!A169,MUAVİN!$H$3:$H$177470) -> 0 | E169: 0 | F169: 0
A170: 691 | B170: DÖN.KARI VERGİ VE DİĞ.YASAL YÜKÜM.KARŞILIKLARI (-) | C170: =SUMIF(MUAVİN!$A$3:$A$177470,MİZAN!A170,MUAVİN!$G$3:$G$177470) -> 0 | D170: =SUMIF(MUAVİN!$A$3:$A$177470,MİZAN!A170,MUAVİN!$H$3:$H$177470) -> 0 | E170: 0 | F170: 0
A171: 692 | B171: DÖNEM NET KARI VEYA ZARARI | C171: =SUMIF(MUAVİN!$A$3:$A$177470,MİZAN!A171,MUAVİN!$G$3:$G$177470) -> 0 | D171: =SUMIF(MUAVİN!$A$3:$A$177470,MİZAN!A171,MUAVİN!$H$3:$H$177470) -> 0 | E171: 0 | F171: 0
A172: 710 | B172: DİREKT İLK MADDE VE MALZEME GİDERİ | C172: =SUMIF(MUAVİN!$A$3:$A$177470,MİZAN!A172,MUAVİN!$G$3:$G$177470) -> 0 | D172: =SUMIF(MUAVİN!$A$3:$A$177470,MİZAN!A172,MUAVİN!$H$3:$H$177470) -> 0 | E172: 0 | F172: 0
A173: 711 | B173: DİREKT İLK MADDE VE MALZEME GİDERİ YANS | C173: =SUMIF(MUAVİN!$A$3:$A$177470,MİZAN!A173,MUAVİN!$G$3:$G$177470) -> 0 | D173: =SUMIF(MUAVİN!$A$3:$A$177470,MİZAN!A173,MUAVİN!$H$3:$H$177470) -> 0 | E173: 0 | F173: 0
A174: 720 | B174: DİREK İŞÇİLİK GİDERİ | C174: =SUMIF(MUAVİN!$A$3:$A$177470,MİZAN!A174,MUAVİN!$G$3:$G$177470) -> 0 | D174: =SUMIF(MUAVİN!$A$3:$A$177470,MİZAN!A174,MUAVİN!$H$3:$H$177470) -> 0 | E174: 0 | F174: 0
A175: 721 | B175: DİREK İŞÇİLİK GİDERİ YANS | C175: =SUMIF(MUAVİN!$A$3:$A$177470,MİZAN!A175,MUAVİN!$G$3:$G$177470) -> 0 | D175: =SUMIF(MUAVİN!$A$3:$A$177470,MİZAN!A175,MUAVİN!$H$3:$H$177470) -> 0 | E175: 0 | F175: 0
A176: 730 | B176: GENEL ÜRETİM GİDERLERİ | C176: =SUMIF(MUAVİN!$A$3:$A$177470,MİZAN!A176,MUAVİN!$G$3:$G$177470) -> 0 | D176: =SUMIF(MUAVİN!$A$3:$A$177470,MİZAN!A176,MUAVİN!$H$3:$H$177470) -> 0 | E176: 0 | F176: 0
A177: 731 | B177: GENEL ÜRETİM GİDERLERİ YANS | C177: =SUMIF(MUAVİN!$A$3:$A$177470,MİZAN!A177,MUAVİN!$G$3:$G$177470) -> 0 | D177: =SUMIF(MUAVİN!$A$3:$A$177470,MİZAN!A177,MUAVİN!$H$3:$H$177470) -> 0 | E177: 0 | F177: 0
A178: 740 | B178: HİZMET ÜRETİM MALİYETİ | C178: =SUMIF(MUAVİN!$A$3:$A$177470,MİZAN!A178,MUAVİN!$G$3:$G$177470) -> 0 | D178: =SUMIF(MUAVİN!$A$3:$A$177470,MİZAN!A178,MUAVİN!$H$3:$H$177470) -> 0 | E178: 0 | F178: 0
A179: 741 | B179: HİZMET ÜRETİM MALİYETİ YANS | C179: =SUMIF(MUAVİN!$A$3:$A$177470,MİZAN!A179,MUAVİN!$G$3:$G$177470) -> 0 | D179: =SUMIF(MUAVİN!$A$3:$A$177470,MİZAN!A179,MUAVİN!$H$3:$H$177470) -> 0 | E179: 0 | F179: 0
A180: 750 | B180: ARAŞTIRMA VE GELİŞTİRME GİDERLERİ | C180: =SUMIF(MUAVİN!$A$3:$A$177470,MİZAN!A180,MUAVİN!$G$3:$G$177470) -> 500 | D180: =SUMIF(MUAVİN!$A$3:$A$177470,MİZAN!A180,MUAVİN!$H$3:$H$177470) -> 0 | E180: 500 | F180: 0
A181: 751 | B181: ARAŞTIRMA VE GELİŞTİRME GİDERLERİ YANS | C181: =SUMIF(MUAVİN!$A$3:$A$177470,MİZAN!A181,MUAVİN!$G$3:$G$177470) -> 0 | D181: =SUMIF(MUAVİN!$A$3:$A$177470,MİZAN!A181,MUAVİN!$H$3:$H$177470) -> 0 | E181: 0 | F181: 0
A182: 760 | B182: PAZARLAMA SATIŞ VE DAĞITIM | C182: =SUMIF(MUAVİN!$A$3:$A$177470,MİZAN!A182,MUAVİN!$G$3:$G$177470) -> 600 | D182: =SUMIF(MUAVİN!$A$3:$A$177470,MİZAN!A182,MUAVİN!$H$3:$H$177470) -> 0 | E182: =IF(C182>D182,C182-D182,0) -> 600 | F182: =IF(D182>C182,D182-C182,0) -> 0
A183: 761 | B183: PAZARLAMA SATIŞ VE DAĞITIM YANS | C183: =SUMIF(MUAVİN!$A$3:$A$177470,MİZAN!A183,MUAVİN!$G$3:$G$177470) -> 0 | D183: =SUMIF(MUAVİN!$A$3:$A$177470,MİZAN!A183,MUAVİN!$H$3:$H$177470) -> 0 | E183: 0 | F183: 0
A184: 770 | B184: GENEL YÖNETİM GİDERLERİ | C184: =SUMIF(MUAVİN!$A$3:$A$177470,MİZAN!A184,MUAVİN!$G$3:$G$177470) -> 700 | D184: =SUMIF(MUAVİN!$A$3:$A$177470,MİZAN!A184,MUAVİN!$H$3:$H$177470) -> 0 | E184: 700 | F184: 0
A185: 771 | B185: GENEL YÖNETİM GİDERLERİ YANS | C185: =SUMIF(MUAVİN!$A$3:$A$177470,MİZAN!A185,MUAVİN!$G$3:$G$177470) -> 0 | D185: =SUMIF(MUAVİN!$A$3:$A$177470,MİZAN!A185,MUAVİN!$H$3:$H$177470) -> 0 | E185: 0 | F185: 0
A186: 780 | B186: FİNANSMAN GİDERLERİ | C186: =SUMIF(MUAVİN!$A$3:$A$177470,MİZAN!A186,MUAVİN!$G$3:$G$177470) -> 800 | D186: =SUMIF(MUAVİN!$A$3:$A$177470,MİZAN!A186,MUAVİN!$H$3:$H$177470) -> 0 | E186: 800 | F186: 0
A187: 781 | B187: FİNANSMAN GİDERLERİ | C187: =SUMIF(MUAVİN!$A$3:$A$177470,MİZAN!A187,MUAVİN!$G$3:$G$177470) -> 0 | D187: =SUMIF(MUAVİN!$A$3:$A$177470,MİZAN!A187,MUAVİN!$H$3:$H$177470) -> 0 | E187: 0 | F187: 0
A188: TOPLAM | C188: =SUM(C3:C187) -> 10500 | D188: =SUM(D3:D187) -> 2515300 | E188: =SUM(E3:E187) -> 6200 | F188: =SUM(F3:F187) -> 2511000

Sheet BİLANÇO
B2: 31/12/202.. TARİHLİ AYRINTILI
B3: BİLANÇO
C5: AKTİF | D5: Cari Dönem | G5: PASİF | H5: Cari Dönem
B6: 1 | C6: DÖNEN VARLIKLAR | D6: =SUM(D7+D13+D20+D30+D39+D47+D51+D54) -> 8700 | F6: 3 | G6: KISA VADELİ YABANCI KAYNAKLAR | H6: =SUM(H7+H18+H24+H31+H34+H37+H43+H51+H55) -> 0
B7: 10 | C7: Hazır Değerler | D7: =SUM(D8,D9,D10,-D11,D12) -> 8700 | F7: 30 | G7: Mali Borçlar | H7: =SUM(H8,H9,-H10,H11,H12,H13,H14,H15,-H16,H17) -> 0
B8: 100 | C8: Kasa | D8: =IF(ISERROR(VLOOKUP(B8,HESAP_KODU,5,FALSE)),0,IF(VLOOKUP(B8,HESAP_KODU,5,FALSE)=0,VLOOKUP(B8,HESAP_KODU,6,FALSE),VLOOKUP(B8,HESAP_KODU,5,FALSE))) -> 3200 | F8: 300 | G8: Banka Kredileri | H8: =IF(ISERROR(VLOOKUP(F8,HESAP_KODU,5,FALSE)),0,IF(VLOOKUP(F8,HESAP_KODU,5,FALSE)=0,VLOOKUP(F8,HESAP_KODU,6,FALSE),VLOOKUP(F8,HESAP_KODU,5,FALSE))) -> 0
B9: 101 | C9: Alınan Çekler | D9: =IF(ISERROR(VLOOKUP(B9,HESAP_KODU,5,FALSE)),0,IF(VLOOKUP(B9,HESAP_KODU,5,FALSE)=0,VLOOKUP(B9,HESAP_KODU,6,FALSE),VLOOKUP(B9,HESAP_KODU,5,FALSE))) -> 0 | F9: 301 | G9: Finansal Kir.İşlemlerinden Doğan Borçlar | H9: =IF(ISERROR(VLOOKUP(F9,HESAP_KODU,5,FALSE)),0,IF(VLOOKUP(F9,HESAP_KODU,5,FALSE)=0,VLOOKUP(F9,HESAP_KODU,6,FALSE),VLOOKUP(F9,HESAP_KODU,5,FALSE))) -> 0
B10: 102 | C10: Bankalar | D10: =IF(ISERROR(VLOOKUP(B10,HESAP_KODU,5,FALSE)),0,IF(VLOOKUP(B10,HESAP_KODU,5,FALSE)=0,VLOOKUP(B10,HESAP_KODU,6,FALSE),VLOOKUP(B10,HESAP_KODU,5,FALSE))) -> 5500 | F10: 302 | G10: Ertelenmiş Fin.Kir.Borçlanma Mal. (-) | H10: =IF(ISERROR(VLOOKUP(F10,HESAP_KODU,5,FALSE)),0,IF(VLOOKUP(F10,HESAP_KODU,5,FALSE)=0,VLOOKUP(F10,HESAP_KODU,6,FALSE),VLOOKUP(F10,HESAP_KODU,5,FALSE))) -> 0
B11: 103 | C11: Verilen Çekler ve Ödeme Emir.(-) | D11: =IF(ISERROR(VLOOKUP(B11,HESAP_KODU,5,FALSE)),0,IF(VLOOKUP(B11,HESAP_KODU,5,FALSE)=0,VLOOKUP(B11,HESAP_KODU,6,FALSE),VLOOKUP(B11,HESAP_KODU,5,FALSE))) -> 0 | F11: 303 | G11: Uzun Vadeli Kredilerin | H11: =IF(ISERROR(VLOOKUP(F11,HESAP_KODU,5,FALSE)),0,IF(VLOOKUP(F11,HESAP_KODU,5,FALSE)=0,VLOOKUP(F11,HESAP_KODU,6,FALSE),VLOOKUP(F11,HESAP_KODU,5,FALSE))) -> 0
B12: 108 | C12: Diğer Hazır Değerler | D12: =IF(ISERROR(VLOOKUP(B12,HESAP_KODU,5,FALSE)),0,IF(VLOOKUP(B12,HESAP_KODU,5,FALSE)=0,VLOOKUP(B12,HESAP_KODU,6,FALSE),VLOOKUP(B12,HESAP_KODU,5,FALSE))) -> 0 | G12: Anapara Taksitleri ve Faizleri
B13: 11 | C13: Menkul Kıymetler | D13: =SUM(D14,D15,D16,D17,-D18,-D19) -> 0 | F13: 304 | G13: Tahvil, Anapara, Borç Taksit ve Faizleri | H13: =IF(ISERROR(VLOOKUP(F13,HESAP_KODU,5,FALSE)),0,IF(VLOOKUP(F13,HESAP_KODU,5,FALSE)=0,VLOOKUP(F13,HESAP_KODU,6,FALSE),VLOOKUP(F13,HESAP_KODU,5,FALSE))) -> 0
B14: 110 | C14: Hisse Senetleri | D14: =IF(ISERROR(VLOOKUP(B14,HESAP_KODU,5,FALSE)),0,IF(VLOOKUP(B14,HESAP_KODU,5,FALSE)=0,VLOOKUP(B14,HESAP_KODU,6,FALSE),VLOOKUP(B14,HESAP_KODU,5,FALSE))) -> 0 | F14: 305 | G14: Çıkarılmış Bonolar ve Senetler | H14: =IF(ISERROR(VLOOKUP(F14,HESAP_KODU,5,FALSE)),0,IF(VLOOKUP(F14,HESAP_KODU,5,FALSE)=0,VLOOKUP(F14,HESAP_KODU,6,FALSE),VLOOKUP(F14,HESAP_KODU,5,FALSE))) -> 0
B15: 111 | C15: Özel Kesim Tahv. Senet ve Bon. | D15: =IF(ISERROR(VLOOKUP(B15,HESAP_KODU,5,FALSE)),0,IF(VLOOKUP(B15,HESAP_KODU,5,FALSE)=0,VLOOKUP(B15,HESAP_KODU,6,FALSE),VLOOKUP(B15,HESAP_KODU,5,FALSE))) -> 0 | F15: 306 | G15: Çıkarılmış, Diğer Menkul Kıymetler | H15: =IF(ISERROR(VLOOKUP(F15,HESAP_KODU,5,FALSE)),0,IF(VLOOKUP(F15,HESAP_KODU,5,FALSE)=0,VLOOKUP(F15,HESAP_KODU,6,FALSE),VLOOKUP(F15,HESAP_KODU,5,FALSE))) -> 0
B16: 112 | C16: Kamu Kesimi Tahv. Senet ve Bon. | D16: =IF(ISERROR(VLOOKUP(B16,HESAP_KODU,5,FALSE)),0,IF(VLOOKUP(B16,HESAP_KODU,5,FALSE)=0,VLOOKUP(B16,HESAP_KODU,6,FALSE),VLOOKUP(B16,HESAP_KODU,5,FALSE))) -> 0 | F16: 308 | G16: Menkul Kıymetler İhraç Farkları (-) | H16: =IF(ISERROR(VLOOKUP(F16,HESAP_KODU,5,FALSE)),0,IF(VLOOKUP(F16,HESAP_KODU,5,FALSE)=0,VLOOKUP(F16,HESAP_KODU,6,FALSE),VLOOKUP(F16,HESAP_KODU,5,FALSE))) -> 0
B17: 118 | C17: Diğer Menkul Kıymetler | D17: =IF(ISERROR(VLOOKUP(B17,HESAP_KODU,5,FALSE)),0,IF(VLOOKUP(B17,HESAP_KODU,5,FALSE)=0,VLOOKUP(B17,HESAP_KODU,6,FALSE),VLOOKUP(B17,HESAP_KODU,5,FALSE))) -> 0 | F17: 309 | G17: Diğer Mali Borçlar | H17: =IF(ISERROR(VLOOKUP(F17,HESAP_KODU,5,FALSE)),0,IF(VLOOKUP(F17,HESAP_KODU,5,FALSE)=0,VLOOKUP(F17,HESAP_KODU,6,FALSE),VLOOKUP(F17,HESAP_KODU,5,FALSE))) -> 0
B18: 119 | C18: Menkul Kıymetler Değer | D18: =IF(ISERROR(VLOOKUP(B18,HESAP_KODU,5,FALSE)),0,IF(VLOOKUP(B18,HESAP_KODU,5,FALSE)=0,VLOOKUP(B18,HESAP_KODU,6,FALSE),VLOOKUP(B18,HESAP_KODU,5,FALSE))) -> 0 | F18: 32 | G18: Ticari Borçlar | H18: =SUM(H19,H20,-H21,H22,H23) -> 0
C19: Düşüklüğü Karşılığı (-) | F19: 320 | G19: Satıcılar | H19: =IF(ISERROR(VLOOKUP(F19,HESAP_KODU,5,FALSE)),0,IF(VLOOKUP(F19,HESAP_KODU,5,FALSE)=0,VLOOKUP(F19,HESAP_KODU,6,FALSE),VLOOKUP(F19,HESAP_KODU,5,FALSE))) -> 0
B20: 12 | C20: Ticari Alacaklar | D20: =SUM(D21,D22,-D23,-D24,-D25,D26,D27,D28,-D29) -> 0 | F20: 321 | G20: Borç Senetleri | H20: =IF(ISERROR(VLOOKUP(F20,HESAP_KODU,5,FALSE)),0,IF(VLOOKUP(F20,HESAP_KODU,5,FALSE)=0,VLOOKUP(F20,HESAP_KODU,6,FALSE),VLOOKUP(F20,HESAP_KODU,5,FALSE))) -> 0
B21: 120 | C21: Alıcılar | D21: =IF(ISERROR(VLOOKUP(B21,HESAP_KODU,5,FALSE)),0,IF(VLOOKUP(B21,HESAP_KODU,5,FALSE)=0,VLOOKUP(B21,HESAP_KODU,6,FALSE),VLOOKUP(B21,HESAP_KODU,5,FALSE))) -> 0 | F21: 322 | G21: Borç Senetleri Reeskontu (-) | H21: =IF(ISERROR(VLOOKUP(F21,HESAP_KODU,5,FALSE)),0,IF(VLOOKUP(F21,HESAP_KODU,5,FALSE)=0,VLOOKUP(F21,HESAP_KODU,6,FALSE),VLOOKUP(F21,HESAP_KODU,5,FALSE))) -> 0
B22: 121 | C22: Alacak Senetleri | D22: =IF(ISERROR(VLOOKUP(B22,HESAP_KODU,5,FALSE)),0,IF(VLOOKUP(B22,HESAP_KODU,5,FALSE)=0,VLOOKUP(B22,HESAP_KODU,6,FALSE),VLOOKUP(B22,HESAP_KODU,5,FALSE))) -> 0 | F22: 326 | G22: Alınan Depozito ve Teminatlar | H22: =IF(ISERROR(VLOOKUP(F22,HESAP_KODU,5,FALSE)),0,IF(VLOOKUP(F22,HESAP_KODU,5,FALSE)=0,VLOOKUP(F22,HESAP_KODU,6,FALSE),VLOOKUP(F22,HESAP_KODU,5,FALSE))) -> 0
B23: 122 | C23: Alacak Senetleri Reeskontu (-) | D23: =IF(ISERROR(VLOOKUP(B23,HESAP_KODU,5,FALSE)),0,IF(VLOOKUP(B23,HESAP_KODU,5,FALSE)=0,VLOOKUP(B23,HESAP_KODU,6,FALSE),VLOOKUP(B23,HESAP_KODU,5,FALSE))) -> 0 | F23: 329 | G23: Diğer Ticari Borçlar | H23: =IF(ISERROR(VLOOKUP(F23,HESAP_KODU,5,FALSE)),0,IF(VLOOKUP(F23,HESAP_KODU,5,FALSE)=0,VLOOKUP(F23,HESAP_KODU,6,FALSE),VLOOKUP(F23,HESAP_KODU,5,FALSE))) -> 0
B24: 124 | C24: Kazanılmamış Finansal Kiralama | D24: =IF(ISERROR(VLOOKUP(B24,HESAP_KODU,5,FALSE)),0,IF(VLOOKUP(B24,HESAP_KODU,5,FALSE)=0,VLOOKUP(B24,HESAP_KODU,6,FALSE),VLOOKUP(B24,HESAP_KODU,5,FALSE))) -> 0 | F24: 33 | G24: Diğer Borçlar | H24: =SUM(H25,H26,H27,H28,H29,-H30) -> 0
C25: Faiz Gelirleri (-) | F25: 331 | G25: Ortaklara Borçlar | H25: =IF(ISERROR(VLOOKUP(F25,HESAP_KODU,5,FALSE)),0,IF(VLOOKUP(F25,HESAP_KODU,5,FALSE)=0,VLOOKUP(F25,HESAP_KODU,6,FALSE),VLOOKUP(F25,HESAP_KODU,5,FALSE))) -> 0
B26: 126 | C26: Verilen Depozito ve Teminatlar | D26: =IF(ISERROR(VLOOKUP(B26,HESAP_KODU,5,FALSE)),0,IF(VLOOKUP(B26,HESAP_KODU,5,FALSE)=0,VLOOKUP(B26,HESAP_KODU,6,FALSE),VLOOKUP(B26,HESAP_KODU,5,FALSE))) -> 0 | F26: 332 | G26: İştiraklere Borçlar | H26: 0
B27: 127 | C27: Diğer Ticari Alacaklar | D27: =IF(ISERROR(VLOOKUP(B27,HESAP_KODU,5,FALSE)),0,IF(VLOOKUP(B27,HESAP_KODU,5,FALSE)=0,VLOOKUP(B27,HESAP_KODU,6,FALSE),VLOOKUP(B27,HESAP_KODU,5,FALSE))) -> 0 | F27: 333 | G27: Bağlı Ortaklıklara Borçlar | H27: 0
B28: 128 | C28: Şüpheli Ticari Alacaklar | D28: =IF(ISERROR(VLOOKUP(B28,HESAP_KODU,5,FALSE)),0,IF(VLOOKUP(B28,HESAP_KODU,5,FALSE)=0,VLOOKUP(B28,HESAP_KODU,6,FALSE),VLOOKUP(B28,HESAP_KODU,5,FALSE))) -> 0 | F28: 335 | G28: Personele Borçlar | H28: 0
B29: 129 | C29: Şüpheli Ticari Alacaklar Karş. (-) | D29: =IF(ISERROR(VLOOKUP(B29,HESAP_KODU,5,FALSE)),0,IF(VLOOKUP(B29,HESAP_KODU,5,FALSE)=0,VLOOKUP(B29,HESAP_KODU,6,FALSE),VLOOKUP(B29,HESAP_KODU,5,FALSE))) -> 0 | F29: 336 | G29: Diğer Çeşitli Borçlar | H29: 0
B30: 13 | C30: Diğer Alacaklar | D30: =SUM(D31,D32,D33,D34,D35,-D36,D37,-D38) -> 0 | F30: 337 | G30: Diğer Borç Senetleri Reeskontu (-) | H30: 0
B31: 131 | C31: Ortaklardan Alacaklar | D31: =IF(ISERROR(VLOOKUP(B31,HESAP_KODU,5,FALSE)),0,IF(VLOOKUP(B31,HESAP_KODU,5,FALSE)=0,VLOOKUP(B31,HESAP_KODU,6,FALSE),VLOOKUP(B31,HESAP_KODU,5,FALSE))) -> 0 | F31: 34 | G31: Alınan Avanslar | H31: =SUM(H32:H33) -> 0
B32: 132 | C32: İştiraklerden Alacaklar | D32: 0 | F32: 340 | G32: Alınan Sipariş Avansları | H32: =IF(ISERROR(VLOOKUP(F32,HESAP_KODU,5,FALSE)),0,IF(VLOOKUP(F32,HESAP_KODU,5,FALSE)=0,VLOOKUP(F32,HESAP_KODU,6,FALSE),VLOOKUP(F32,HESAP_KODU,5,FALSE))) -> 0
B33: 133 | C33: Bağlı Ortaklıklardan Alacaklar | D33: 0 | F33: 349 | G33: Alınan Diğer Avanslar | H33: =IF(ISERROR(VLOOKUP(F33,HESAP_KODU,5,FALSE)),0,IF(VLOOKUP(F33,HESAP_KODU,5,FALSE)=0,VLOOKUP(F33,HESAP_KODU,6,FALSE),VLOOKUP(F33,HESAP_KODU,5,FALSE))) -> 0
B34: 135 | C34: Personelden Alacaklar | D34: 0 | F34: 35 | G34: Yıllara Yaygın İnş. Ve On. Hak. | H34: =SUM(H35:H36) -> 0
B35: 136 | C35: Diğer Çeşitli Alacaklar | D35: 0 | F35: 350 | G35: Yıllara Yaygın İnş. Ve On. Hak. bedelleri | H35: =IF(ISERROR(VLOOKUP(F35,HESAP_KODU,5,FALSE)),0,IF(VLOOKUP(F35,HESAP_KODU,5,FALSE)=0,VLOOKUP(F35,HESAP_KODU,6,FALSE),VLOOKUP(F35,HESAP_KODU,5,FALSE))) -> 0
B36: 137 | C36: Diğer Alacak Senetleri Reesk. (-) | D36: 0 | F36: 358 | G36: Yıllara Yaygın İnş. Enflasyon Düz. Hesabı | H36: =IF(ISERROR(VLOOKUP(F36,HESAP_KODU,5,FALSE)),0,IF(VLOOKUP(F36,HESAP_KODU,5,FALSE)=0,VLOOKUP(F36,HESAP_KODU,6,FALSE),VLOOKUP(F36,HESAP_KODU,5,FALSE))) -> 0
B37: 138 | C37: Şüpheli Diğer Alacaklar | D37: 0 | F37: 36 | G37: Ödenecek Vergi ve Diğer Yüküm. | H37: =SUM(H38:H42) -> 0
B38: 139 | C38: Şüpheli Diğer Alacaklar Karşılığı (-) | D38: 0 | F38: 360 | G38: Ödenecek Vergi ve Fonları | H38: =IF(ISERROR(VLOOKUP(F38,HESAP_KODU,5,FALSE)),0,IF(VLOOKUP(F38,HESAP_KODU,5,FALSE)=0,VLOOKUP(F38,HESAP_KODU,6,FALSE),VLOOKUP(F38,HESAP_KODU,5,FALSE))) -> 0
B39: 15 | C39: Stoklar | D39: =SUM(D40,D41,D42,D43,D44,-D45,D46) -> 0 | F39: 361 | G39: Ödenecek Sosyal Güvenlik Kesintileri | H39: =IF(ISERROR(VLOOKUP(F39,HESAP_KODU,5,FALSE)),0,IF(VLOOKUP(F39,HESAP_KODU,5,FALSE)=0,VLOOKUP(F39,HESAP_KODU,6,FALSE),VLOOKUP(F39,HESAP_KODU,5,FALSE))) -> 0
B40: 150 | C40: İlk Madde ve Malzeme | D40: =IF(ISERROR(VLOOKUP(B40,HESAP_KODU,5,FALSE)),0,IF(VLOOKUP(B40,HESAP_KODU,5,FALSE)=0,VLOOKUP(B40,HESAP_KODU,6,FALSE),VLOOKUP(B40,HESAP_KODU,5,FALSE))) -> 0 | F40: 368 | G40: Vadesi Geçmiş Ert. veya Taksitlendirilmiş | H40: =IF(ISERROR(VLOOKUP(F40,HESAP_KODU,5,FALSE)),0,IF(VLOOKUP(F40,HESAP_KODU,5,FALSE)=0,VLOOKUP(F40,HESAP_KODU,6,FALSE),VLOOKUP(F40,HESAP_KODU,5,FALSE))) -> 0
B41: 151 | C41: Yarı Mamüller | D41: 0 | G41: Vergi ve Diğer Yükümlülükler
B42: 152 | C42: Mamüller | D42: 0 | F42: 369 | G42: Ödenecek Diğer Yükümlülükler | H42: =IF(ISERROR(VLOOKUP(F42,HESAP_KODU,5,FALSE)),0,IF(VLOOKUP(F42,HESAP_KODU,5,FALSE)=0,VLOOKUP(F42,HESAP_KODU,6,FALSE),VLOOKUP(F42,HESAP_KODU,5,FALSE))) -> 0
B43: 153 | C43: Ticari Mallar | D43: 0 | F43: 37 | G43: Borç ve Gider Karşılıkları | H43: =SUM(H44,H45,-H46,-H47,H48,H49,H50) -> 0
B44: 157 | C44: Diğer Stoklar | D44: 0 | F44: 370 | G44: Dönem Karı Vergi ve Diğer | H44: =IF(ISERROR(VLOOKUP(F44,HESAP_KODU,5,FALSE)),0,IF(VLOOKUP(F44,HESAP_KODU,5,FALSE)=0,VLOOKUP(F44,HESAP_KODU,6,FALSE),VLOOKUP(F44,HESAP_KODU,5,FALSE))) -> 0
B45: 158 | C45: Stok Değer Düşüklüğü Karşılığı (-) | D45: 0 | G45: Yasal Yükümlülük Karşılıkları
B46: 159 | C46: Verilen Sipariş Avansları | D46: 0 | F46: 371 | G46: Dönem Karının Peşin Ödenen Vergi | H46: =IF(ISERROR(VLOOKUP(F46,HESAP_KODU,5,FALSE)),0,IF(VLOOKUP(F46,HESAP_KODU,5,FALSE)=0,VLOOKUP(F46,HESAP_KODU,6,FALSE),VLOOKUP(F46,HESAP_KODU,5,FALSE))) -> 0
B47: 17 | C47: Yıllara Yaygın İnş. Ve On. Mal. | D47: =SUM(D48:D50) -> 0 | G47: ve Diğer Yükümlülükleri (-)
B48: 170 | C48: Yıllara Yaygın İnş. Ve On. Mal. | D48: =IF(ISERROR(VLOOKUP(B48,HESAP_KODU,5,FALSE)),0,IF(VLOOKUP(B48,HESAP_KODU,5,FALSE)=0,VLOOKUP(B48,HESAP_KODU,6,FALSE),VLOOKUP(B48,HESAP_KODU,5,FALSE))) -> 0 | F48: 372 | G48: Kıdem Tazminatı Karşılığı | H48: =IF(ISERROR(VLOOKUP(F48,HESAP_KODU,5,FALSE)),0,IF(VLOOKUP(F48,HESAP_KODU,5,FALSE)=0,VLOOKUP(F48,HESAP_KODU,6,FALSE),VLOOKUP(F48,HESAP_KODU,5,FALSE))) -> 0
B49: 178 | C49: Yıllara Yaygın İnş. Enf.Düz. Hes. | D49: =IF(ISERROR(VLOOKUP(B49,HESAP_KODU,5,FALSE)),0,IF(VLOOKUP(B49,HESAP_KODU,5,FALSE)=0,VLOOKUP(B49,HESAP_KODU,6,FALSE),VLOOKUP(B49,HESAP_KODU,5,FALSE))) -> 0 | F49: 373 | G49: Maliyet Giderleri Karşılığı | H49: =IF(ISERROR(VLOOKUP(F49,HESAP_KODU,5,FALSE)),0,IF(VLOOKUP(F49,HESAP_KODU,5,FALSE)=0,VLOOKUP(F49,HESAP_KODU,6,FALSE),VLOOKUP(F49,HESAP_KODU,5,FALSE))) -> 0
B50: 179 | C50: Taşeronlara Verilen Avanslar | D50: =IF(ISERROR(VLOOKUP(B50,HESAP_KODU,5,FALSE)),0,IF(VLOOKUP(B50,HESAP_KODU,5,FALSE)=0,VLOOKUP(B50,HESAP_KODU,6,FALSE),VLOOKUP(B50,HESAP_KODU,5,FALSE))) -> 0 | F50: 379 | G50: Diğer Borç ve Gider Karşılıkları | H50: =IF(ISERROR(VLOOKUP(F50,HESAP_KODU,5,FALSE)),0,IF(VLOOKUP(F50,HESAP_KODU,5,FALSE)=0,VLOOKUP(F50,HESAP_KODU,6,FALSE),VLOOKUP(F50,HESAP_KODU,5,FALSE))) -> 0
B51: 18 | C51: Gel. Ayl. Ait Gid. Ve Gelir Tah. | D51: =SUM(D52:D53) -> 0 | F51: 38 | G51: Gelecek Aylara Ait Gelirler ve Gider | H51: =SUM(H53:H54) -> 0
B52: 180 | C52: Gelecek Aylara Ait Giderler | D52: =IF(ISERROR(VLOOKUP(B52,HESAP_KODU,5,FALSE)),0,IF(VLOOKUP(B52,HESAP_KODU,5,FALSE)=0,VLOOKUP(B52,HESAP_KODU,6,FALSE),VLOOKUP(B52,HESAP_KODU,5,FALSE))) -> 0 | G52: Tahakkukları
B53: 181 | C53: Gelir Tahakkukları | D53: =IF(ISERROR(VLOOKUP(B53,HESAP_KODU,5,FALSE)),0,IF(VLOOKUP(B53,HESAP_KODU,5,FALSE)=0,VLOOKUP(B53,HESAP_KODU,6,FALSE),VLOOKUP(B53,HESAP_KODU,5,FALSE))) -> 0 | F53: 380 | G53: Gelecek Aylara Ait Gelirler | H53: =IF(ISERROR(VLOOKUP(F53,HESAP_KODU,5,FALSE)),0,IF(VLOOKUP(F53,HESAP_KODU,5,FALSE)=0,VLOOKUP(F53,HESAP_KODU,6,FALSE),VLOOKUP(F53,HESAP_KODU,5,FALSE))) -> 0
B54: 19 | C54: Diğer Dönen Varlıklar | D54: =SUM(D55,D56,D57,D58,D59,D60,D61,D62,-D63) -> 0 | F54: 381 | G54: Gider Tahakkukları | H54: =IF(ISERROR(VLOOKUP(F54,HESAP_KODU,5,FALSE)),0,IF(VLOOKUP(F54,HESAP_KODU,5,FALSE)=0,VLOOKUP(F54,HESAP_KODU,6,FALSE),VLOOKUP(F54,HESAP_KODU,5,FALSE))) -> 0
B55: 190 | C55: Devreden KDV | D55: =IF(ISERROR(VLOOKUP(B55,HESAP_KODU,5,FALSE)),0,IF(VLOOKUP(B55,HESAP_KODU,5,FALSE)=0,VLOOKUP(B55,HESAP_KODU,6,FALSE),VLOOKUP(B55,HESAP_KODU,5,FALSE))) -> 0 | F55: 39 | G55: Diğer Kısa Vadeli Yabancı Kaynaklar | H55: =SUM(H56:H63) -> 0
B56: 191 | C56: İndirilecek KDV | D56: 0 | F56: 391 | G56: Hesaplanan KDV | H56: =IF(ISERROR(VLOOKUP(F56,HESAP_KODU,5,FALSE)),0,IF(VLOOKUP(F56,HESAP_KODU,5,FALSE)=0,VLOOKUP(F56,HESAP_KODU,6,FALSE),VLOOKUP(F56,HESAP_KODU,5,FALSE))) -> 0
B57: 192 | C57: Diğer KDV | D57: 0 | F57: 392 | G57: Diğer KDV | H57: =IF(ISERROR(VLOOKUP(F57,HESAP_KODU,5,FALSE)),0,IF(VLOOKUP(F57,HESAP_KODU,5,FALSE)=0,VLOOKUP(F57,HESAP_KODU,6,FALSE),VLOOKUP(F57,HESAP_KODU,5,FALSE))) -> 0
B58: 193 | C58: Peşin Ödenen Vergiler ve Fonlar | D58: 0 | F58: 393 | G58: Merkez Ve Şubeler Cari Hesabı | H58: =IF(ISERROR(VLOOKUP(F58,HESAP_KODU,5,FALSE)),0,IF(VLOOKUP(F58,HESAP_KODU,5,FALSE)=0,VLOOKUP(F58,HESAP_KODU,6,FALSE),VLOOKUP(F58,HESAP_KODU,5,FALSE))) -> 0
B59: 195 | C59: İş avansı | D59: 0
B60: 196 | C60: Personel Avansları | D60: 0 | F60: 397 | G60: Sayım ve Tesellüm Fazlaları | H60: =IF(ISERROR(VLOOKUP(F60,HESAP_KODU,5,FALSE)),0,IF(VLOOKUP(F60,HESAP_KODU,5,FALSE)=0,VLOOKUP(F60,HESAP_KODU,6,FALSE),VLOOKUP(F60,HESAP_KODU,5,FALSE))) -> 0
B61: 197 | C61: Sayım ve Tesellüm Noksanları | D61: 0 | F61: 399 | G61: Diğer Çeşitli Yabancı Kaynaklar | H61: =IF(ISERROR(VLOOKUP(F61,HESAP_KODU,5,FALSE)),0,IF(VLOOKUP(F61,HESAP_KODU,5,FALSE)=0,VLOOKUP(F61,HESAP_KODU,6,FALSE),VLOOKUP(F61,HESAP_KODU,5,FALSE))) -> 0
B62: 198 | C62: Diğer Çeşitli Dönen Varlıklar | D62: 0
B63: 199 | C63: Diğer Dönen Varlıklar Karşılığı (-) | D63: 0
B64: 2 | C64: DURAN VARLIKLAR | D64: =SUM(D65+D72+D80+D94+D105+D114+D120+D124) -> 0 | F64: 4 | G64: UZUN VADELİ YABANCI KAYNAKLAR | H64: =SUM(H65+H74+H80+H87+H90+H93+H97) -> 0
B65: 22 | C65: Ticari Alacaklar | D65: =SUM(D66,D67,-D68,-D69,D70,-D71) -> 0 | F65: 40 | G65: Mali Borçlar | H65: =SUM(H66,H67,-H68,H69,H70,H71,-H72,H73) -> 0
B66: 220 | C66: Alıcılar | D66: =IF(ISERROR(VLOOKUP(B66,HESAP_KODU,5,FALSE)),0,IF(VLOOKUP(B66,HESAP_KODU,5,FALSE)=0,VLOOKUP(B66,HESAP_KODU,6,FALSE),VLOOKUP(B66,HESAP_KODU,5,FALSE))) -> 0 | F66: 400 | G66: Banka Kredileri | H66: =IF(ISERROR(VLOOKUP(F66,HESAP_KODU,5,FALSE)),0,IF(VLOOKUP(F66,HESAP_KODU,5,FALSE)=0,VLOOKUP(F66,HESAP_KODU,6,FALSE),VLOOKUP(F66,HESAP_KODU,5,FALSE))) -> 0
B67: 221 | C67: Alacak Senetleri | D67: 0 | F67: 401 | G67: Finansal Kir.İşlemlerinden Doğan Borçlar | H67: =IF(ISERROR(VLOOKUP(F67,HESAP_KODU,5,FALSE)),0,IF(VLOOKUP(F67,HESAP_KODU,5,FALSE)=0,VLOOKUP(F67,HESAP_KODU,6,FALSE),VLOOKUP(F67,HESAP_KODU,5,FALSE))) -> 0
B68: 222 | C68: Alacak Senetleri Reeskontu (-) | D68: 0 | F68: 402 | G68: Ertelenmiş Fin.Kir.Borçlanma Mal. (-) | H68: =IF(ISERROR(VLOOKUP(F68,HESAP_KODU,5,FALSE)),0,IF(VLOOKUP(F68,HESAP_KODU,5,FALSE)=0,VLOOKUP(F68,HESAP_KODU,6,FALSE),VLOOKUP(F68,HESAP_KODU,5,FALSE))) -> 0
B69: 224 | C69: Kazanılmamış Fin. Kir. Faiz Gelirleri (-) | D69: 0 | F69: 405 | G69: Çıkarılmış Tahviller | H69: =IF(ISERROR(VLOOKUP(F69,HESAP_KODU,5,FALSE)),0,IF(VLOOKUP(F69,HESAP_KODU,5,FALSE)=0,VLOOKUP(F69,HESAP_KODU,6,FALSE),VLOOKUP(F69,HESAP_KODU,5,FALSE))) -> 0
B70: 226 | C70: Verilen Depozito ve Teminatlar | D70: 0 | F70: 407 | G70: Çıkarılmış Diğer Menkul | H70: =IF(ISERROR(VLOOKUP(F70,HESAP_KODU,5,FALSE)),0,IF(VLOOKUP(F70,HESAP_KODU,5,FALSE)=0,VLOOKUP(F70,HESAP_KODU,6,FALSE),VLOOKUP(F70,HESAP_KODU,5,FALSE))) -> 0
B71: 229 | C71: Şüpheli Alacaklar Karşılığı (-) | D71: 0 | G71: Kıymetler
B72: 23 | C72: Diğer Alacaklar | D72: =SUM(D73,D74,D75,D76,D77,-D78,-D79) -> 0 | F72: 408 | G72: Menkul Kıymetler İhraç Farkı (-) | H72: =IF(ISERROR(VLOOKUP(F72,HESAP_KODU,5,FALSE)),0,IF(VLOOKUP(F72,HESAP_KODU,5,FALSE)=0,VLOOKUP(F72,HESAP_KODU,6,FALSE),VLOOKUP(F72,HESAP_KODU,5,FALSE))) -> 0
B73: 231 | C73: Ortaklardan Alacaklar | D73: =IF(ISERROR(VLOOKUP(B73,HESAP_KODU,5,FALSE)),0,IF(VLOOKUP(B73,HESAP_KODU,5,FALSE)=0,VLOOKUP(B73,HESAP_KODU,6,FALSE),VLOOKUP(B73,HESAP_KODU,5,FALSE))) -> 0 | F73: 409 | G73: Diğer Mali Borçlar | H73: =IF(ISERROR(VLOOKUP(F73,HESAP_KODU,5,FALSE)),0,IF(VLOOKUP(F73,HESAP_KODU,5,FALSE)=0,VLOOKUP(F73,HESAP_KODU,6,FALSE),VLOOKUP(F73,HESAP_KODU,5,FALSE))) -> 0
B74: 232 | C74: İştiraklerden Alacaklar | D74: 0 | F74: 42 | G74: Ticari Borçlar | H74: =SUM(H75,H76,-H77,H78,H79) -> 0
B75: 233 | C75: Bağlı Ortaklıklardan Alacaklar | D75: 0 | F75: 420 | G75: Satıcılar | H75: =IF(ISERROR(VLOOKUP(F75,HESAP_KODU,5,FALSE)),0,IF(VLOOKUP(F75,HESAP_KODU,5,FALSE)=0,VLOOKUP(F75,HESAP_KODU,6,FALSE),VLOOKUP(F75,HESAP_KODU,5,FALSE))) -> 0
B76: 235 | C76: Personelden Alacaklar | D76: 0 | F76: 421 | G76: Borç Senetleri | H76: =IF(ISERROR(VLOOKUP(F76,HESAP_KODU,5,FALSE)),0,IF(VLOOKUP(F76,HESAP_KODU,5,FALSE)=0,VLOOKUP(F76,HESAP_KODU,6,FALSE),VLOOKUP(F76,HESAP_KODU,5,FALSE))) -> 0
B77: 236 | C77: Diğer Çeşitli Alacaklar | D77: 0 | F77: 422 | G77: Borç Senetleri Reeskontu (-) | H77: =IF(ISERROR(VLOOKUP(F77,HESAP_KODU,5,FALSE)),0,IF(VLOOKUP(F77,HESAP_KODU,5,FALSE)=0,VLOOKUP(F77,HESAP_KODU,6,FALSE),VLOOKUP(F77,HESAP_KODU,5,FALSE))) -> 0
B78: 237 | C78: Diğer Alacak Senetleri Reeskontu (-) | D78: 0 | F78: 426 | G78: Alınan Depozito ve Teminatlar | H78: =IF(ISERROR(VLOOKUP(F78,HESAP_KODU,5,FALSE)),0,IF(VLOOKUP(F78,HESAP_KODU,5,FALSE)=0,VLOOKUP(F78,HESAP_KODU,6,FALSE),VLOOKUP(F78,HESAP_KODU,5,FALSE))) -> 0
B79: 239 | C79: Şüpheli Alacaklar Karşılığı (-) | D79: 0 | F79: 429 | G79: Diğer Ticari Borçlar | H79: =IF(ISERROR(VLOOKUP(F79,HESAP_KODU,5,FALSE)),0,IF(VLOOKUP(F79,HESAP_KODU,5,FALSE)=0,VLOOKUP(F79,HESAP_KODU,6,FALSE),VLOOKUP(F79,HESAP_KODU,5,FALSE))) -> 0
B80: 24 | C80: Mali Duran Varlıklar | D80: =SUM(D81,-D82,-D83,D84,-D85,-D86,-D87,D88,-D89,-D90,-D91,-D92,-D93) -> 0 | F80: 43 | G80: Diğer Borçlar | H80: =SUM(H81,H82,H83,H84,-H85,H86) -> 0
B81: 240 | C81: Bağlı Menkul Kıymetler | D81: =IF(ISERROR(VLOOKUP(B81,HESAP_KODU,5,FALSE)),0,IF(VLOOKUP(B81,HESAP_KODU,5,FALSE)=0,VLOOKUP(B81,HESAP_KODU,6,FALSE),VLOOKUP(B81,HESAP_KODU,5,FALSE))) -> 0 | F81: 431 | G81: Ortaklara Borçlar | H81: =IF(ISERROR(VLOOKUP(F81,HESAP_KODU,5,FALSE)),0,IF(VLOOKUP(F81,HESAP_KODU,5,FALSE)=0,VLOOKUP(F81,HESAP_KODU,6,FALSE),VLOOKUP(F81,HESAP_KODU,5,FALSE))) -> 0
B82: 241 | C82: Bağlı Menkul Kıymetler Değer | D82: =IF(ISERROR(VLOOKUP(B82,HESAP_KODU,5,FALSE)),0,IF(VLOOKUP(B82,HESAP_KODU,5,FALSE)=0,VLOOKUP(B82,HESAP_KODU,6,FALSE),VLOOKUP(B82,HESAP_KODU,5,FALSE))) -> 0 | F82: 432 | G82: İştiraklere Borçlar | H82: 0
C83: Düşüklüğü Karşılığı (-) | F83: 433 | G83: Bağlı Ortaklıklara Borçlar | H83: 0
B84: 242 | C84: İştirakler | D84: =IF(ISERROR(VLOOKUP(B84,HESAP_KODU,5,FALSE)),0,IF(VLOOKUP(B84,HESAP_KODU,5,FALSE)=0,VLOOKUP(B84,HESAP_KODU,6,FALSE),VLOOKUP(B84,HESAP_KODU,5,FALSE))) -> 0 | F84: 436 | G84: Diğer Çeşitli Borçlar | H84: 0
B85: 243 | C85: İştiraklere Sermaye Taahhütleri (-) | D85: =IF(ISERROR(VLOOKUP(B85,HESAP_KODU,5,FALSE)),0,IF(VLOOKUP(B85,HESAP_KODU,5,FALSE)=0,VLOOKUP(B85,HESAP_KODU,6,FALSE),VLOOKUP(B85,HESAP_KODU,5,FALSE))) -> 0 | F85: 437 | G85: Diğer Borç Senetleri Reeskontu (-) | H85: 0
B86: 244 | C86: İştirakler Sermaye Payları Değer | D86: =IF(ISERROR(VLOOKUP(B86,HESAP_KODU,5,FALSE)),0,IF(VLOOKUP(B86,HESAP_KODU,5,FALSE)=0,VLOOKUP(B86,HESAP_KODU,6,FALSE),VLOOKUP(B86,HESAP_KODU,5,FALSE))) -> 0 | F86: 438 | G86: Kamuya Olan Ert. veya Taksitl. Borçlar | H86: 0
C87: Değer Düşüklüğü Karşılığı (-) | F87: 44 | G87: Alınan Avanslar | H87: =SUM(H88:H89) -> 0
B88: 245 | C88: Bağlı Ortaklıklar | D88: =IF(ISERROR(VLOOKUP(B88,HESAP_KODU,5,FALSE)),0,IF(VLOOKUP(B88,HESAP_KODU,5,FALSE)=0,VLOOKUP(B88,HESAP_KODU,6,FALSE),VLOOKUP(B88,HESAP_KODU,5,FALSE))) -> 0 | F88: 440 | G88: Alınan Sipariş Avansları | H88: =IF(ISERROR(VLOOKUP(F88,HESAP_KODU,5,FALSE)),0,IF(VLOOKUP(F88,HESAP_KODU,5,FALSE)=0,VLOOKUP(F88,HESAP_KODU,6,FALSE),VLOOKUP(F88,HESAP_KODU,5,FALSE))) -> 0
B89: 246 | C89: Bağlı Ortaklıklara Sermaye | D89: =IF(ISERROR(VLOOKUP(B89,HESAP_KODU,5,FALSE)),0,IF(VLOOKUP(B89,HESAP_KODU,5,FALSE)=0,VLOOKUP(B89,HESAP_KODU,6,FALSE),VLOOKUP(B89,HESAP_KODU,5,FALSE))) -> 0 | F89: 449 | G89: Alınan Diğer Avanslar | H89: =IF(ISERROR(VLOOKUP(F89,HESAP_KODU,5,FALSE)),0,IF(VLOOKUP(F89,HESAP_KODU,5,FALSE)=0,VLOOKUP(F89,HESAP_KODU,6,FALSE),VLOOKUP(F89,HESAP_KODU,5,FALSE))) -> 0
C90: Taahhütleri (-) | F90: 47 | G90: Borç ve Gider Karşılıkları | H90: =SUM(H91:H92) -> 0
B91: 247 | C91: Bağlı Ortaklıklar Sermaye Payları | D91: =IF(ISERROR(VLOOKUP(B91,HESAP_KODU,5,FALSE)),0,IF(VLOOKUP(B91,HESAP_KODU,5,FALSE)=0,VLOOKUP(B91,HESAP_KODU,6,FALSE),VLOOKUP(B91,HESAP_KODU,5,FALSE))) -> 0 | F91: 472 | G91: Kıdem Tazminatı Karşılıkları | H91: =IF(ISERROR(VLOOKUP(F91,HESAP_KODU,5,FALSE)),0,IF(VLOOKUP(F91,HESAP_KODU,5,FALSE)=0,VLOOKUP(F91,HESAP_KODU,6,FALSE),VLOOKUP(F91,HESAP_KODU,5,FALSE))) -> 0
C92: Değer Düşüklüğü Karşılığı (-) | F92: 479 | G92: Diğer Borç ve Gider Karşılıkları | H92: =IF(ISERROR(VLOOKUP(F92,HESAP_KODU,5,FALSE)),0,IF(VLOOKUP(F92,HESAP_KODU,5,FALSE)=0,VLOOKUP(F92,HESAP_KODU,6,FALSE),VLOOKUP(F92,HESAP_KODU,5,FALSE))) -> 0
B93: 249 | C93: Diğer Mali Duran Varlıklar Karşılığı (-) | D93: =IF(ISERROR(VLOOKUP(B93,HESAP_KODU,5,FALSE)),0,IF(VLOOKUP(B93,HESAP_KODU,5,FALSE)=0,VLOOKUP(B93,HESAP_KODU,6,FALSE),VLOOKUP(B93,HESAP_KODU,5,FALSE))) -> 0 | F93: 48 | G93: Gelecek Yıllara Ait Gelirler ve | H93: =SUM(H95:H96) -> 0
B94: 25 | C94: Maddi Duran Varlıklar | D94: =SUM(D95,D96,D97,D98,D99,D100,D101,-D102,D103,D104) -> 0 | G94: Gider Tahakkukları
B95: 250 | C95: Arazi ve Arsalar | D95: =IF(ISERROR(VLOOKUP(B95,HESAP_KODU,5,FALSE)),0,IF(VLOOKUP(B95,HESAP_KODU,5,FALSE)=0,VLOOKUP(B95,HESAP_KODU,6,FALSE),VLOOKUP(B95,HESAP_KODU,5,FALSE))) -> 0 | F95: 480 | G95: Gelecek Yıllara Ait Gelirler | H95: =IF(ISERROR(VLOOKUP(F95,HESAP_KODU,5,FALSE)),0,IF(VLOOKUP(F95,HESAP_KODU,5,FALSE)=0,VLOOKUP(F95,HESAP_KODU,6,FALSE),VLOOKUP(F95,HESAP_KODU,5,FALSE))) -> 0
B96: 251 | C96: Yeraltı ve Yerüstü Düzenleri | D96: 0 | F96: 481 | G96: Gider Tahakkukları | H96: =IF(ISERROR(VLOOKUP(F96,HESAP_KODU,5,FALSE)),0,IF(VLOOKUP(F96,HESAP_KODU,5,FALSE)=0,VLOOKUP(F96,HESAP_KODU,6,FALSE),VLOOKUP(F96,HESAP_KODU,5,FALSE))) -> 0
B97: 252 | C97: Binalar | D97: 0 | F97: 49 | G97: Diğer Uzun Vadeli Yabancı Kaynaklar | H97: =SUM(H98:H101) -> 0
B98: 253 | C98: Tesis, Makine ve Cihazlar | D98: 0 | F98: 492 | G98: Gelecek Yıllara Eklenen veya | H98: =IF(ISERROR(VLOOKUP(F98,HESAP_KODU,5,FALSE)),0,IF(VLOOKUP(F98,HESAP_KODU,5,FALSE)=0,VLOOKUP(F98,HESAP_KODU,6,FALSE),VLOOKUP(F98,HESAP_KODU,5,FALSE))) -> 0
B99: 254 | C99: Taşıtlar | D99: 0 | G99: Terkin Edilen KDV
B100: 255 | C100: Demirbaşlar | D100: 0 | F100: 493 | G100: Tesise Katılma Payları | H100: =IF(ISERROR(VLOOKUP(F100,HESAP_KODU,5,FALSE)),0,IF(VLOOKUP(F100,HESAP_KODU,5,FALSE)=0,VLOOKUP(F100,HESAP_KODU,6,FALSE),VLOOKUP(F100,HESAP_KODU,5,FALSE))) -> 0
B101: 256 | C101: Diğer Maddi Duran Varlıklar | D101: 0 | F101: 499 | G101: Diğer Çeşitli Uzun Vadeli Yabancı Kay. | H101: =IF(ISERROR(VLOOKUP(F101,HESAP_KODU,5,FALSE)),0,IF(VLOOKUP(F101,HESAP_KODU,5,FALSE)=0,VLOOKUP(F101,HESAP_KODU,6,FALSE),VLOOKUP(F101,HESAP_KODU,5,FALSE))) -> 0
B102: 257 | C102: Birikmiş Amortismanlar (-) | D102: 0
B103: 258 | C103: Yapılmakta Olan Yatırımlar | D103: 0
B104: 259 | C104: Verilen Avanslar | D104: 0 | F104: 5 | G104: ÖZKAYNAKLAR | H104: =SUM(H105+H110+H117+H123-H125+H127) -> 2500000
B105: 26 | C105: Maddi Olmayan Duran Varlıklar | D105: =SUM(D106,D107,D108,D109,D110,D111,-D112,D113) -> 0 | F105: 50 | G105: Ödenmiş Sermaye | H105: =SUM(H106,-H107,H108,-H109) -> 2500000
B106: 260 | C106: Haklar | D106: =IF(ISERROR(VLOOKUP(B106,HESAP_KODU,5,FALSE)),0,IF(VLOOKUP(B106,HESAP_KODU,5,FALSE)=0,VLOOKUP(B106,HESAP_KODU,6,FALSE),VLOOKUP(B106,HESAP_KODU,5,FALSE))) -> 0 | F106: 500 | G106: Sermaye | H106: =IF(ISERROR(VLOOKUP(F106,HESAP_KODU,5,FALSE)),0,IF(VLOOKUP(F106,HESAP_KODU,5,FALSE)=0,VLOOKUP(F106,HESAP_KODU,6,FALSE),VLOOKUP(F106,HESAP_KODU,5,FALSE))) -> 2500000
B107: 261 | C107: Şerefiye | D107: 0 | F107: 501 | G107: Ödenmemiş Sermaye (-) | H107: =IF(ISERROR(VLOOKUP(F107,HESAP_KODU,5,FALSE)),0,IF(VLOOKUP(F107,HESAP_KODU,5,FALSE)=0,VLOOKUP(F107,HESAP_KODU,6,FALSE),VLOOKUP(F107,HESAP_KODU,5,FALSE))) -> 0
B108: 262 | C108: Kuruluş ve Örgütleme Giderleri | D108: 0 | F108: 502 | G108: Sermaye Düzeltmesi Olumlu Farkları | H108: =IF(ISERROR(VLOOKUP(F108,HESAP_KODU,5,FALSE)),0,IF(VLOOKUP(F108,HESAP_KODU,5,FALSE)=0,VLOOKUP(F108,HESAP_KODU,6,FALSE),VLOOKUP(F108,HESAP_KODU,5,FALSE))) -> 0
B109: 263 | C109: Araştırma ve Geliştirme Giderleri | D109: 0 | F109: 503 | G109: Sermaye Düzeltmesi Olumsuz Farkları (-) | H109: =IF(ISERROR(VLOOKUP(F109,HESAP_KODU,5,FALSE)),0,IF(VLOOKUP(F109,HESAP_KODU,5,FALSE)=0,VLOOKUP(F109,HESAP_KODU,6,FALSE),VLOOKUP(F109,HESAP_KODU,5,FALSE))) -> 0
B110: 264 | C110: Özel Maliyetler | D110: 0 | F110: 52 | G110: Sermaye Yedekleri | H110: =SUM(H111:H116) -> 0
B111: 267 | C111: Diğer Maddi Olmayan Duran Varlıklar | D111: 0 | F111: 520 | G111: Hisse Senedi İhraç Primleri | H111: =IF(ISERROR(VLOOKUP(F111,HESAP_KODU,5,FALSE)),0,IF(VLOOKUP(F111,HESAP_KODU,5,FALSE)=0,VLOOKUP(F111,HESAP_KODU,6,FALSE),VLOOKUP(F111,HESAP_KODU,5,FALSE))) -> 0
B112: 268 | C112: Birikmiş Amortismanlar (-) | D112: 0 | F112: 521 | G112: Hisse Senedi İptal Kararları | H112: 0
B113: 269 | C113: Verilen Avanslar | D113: 0 | F113: 522 | G113: M.D.V. Yeniden Değerleme Artışları | H113: 0
B114: 27 | C114: Özel Tükenmeye Tabi Varlıklar | D114: =SUM(D115,D116,D117,-D118,D119) -> 0 | F114: 523 | G114: İştirakler Yeniden Değerleme Artışları | H114: 0
B115: 271 | C115: Arama Giderleri | D115: =IF(ISERROR(VLOOKUP(B115,HESAP_KODU,5,FALSE)),0,IF(VLOOKUP(B115,HESAP_KODU,5,FALSE)=0,VLOOKUP(B115,HESAP_KODU,6,FALSE),VLOOKUP(B115,HESAP_KODU,5,FALSE))) -> 0 | F115: 524 | G115: Maliyet Bedeli Artışları Fonu | H115: 0
B116: 272 | C116: Hazırlık ve Geliştirme Giderleri | D116: =IF(ISERROR(VLOOKUP(B116,HESAP_KODU,5,FALSE)),0,IF(VLOOKUP(B116,HESAP_KODU,5,FALSE)=0,VLOOKUP(B116,HESAP_KODU,6,FALSE),VLOOKUP(B116,HESAP_KODU,5,FALSE))) -> 0 | F116: 529 | G116: Diğer Sermaye Yedekleri | H116: 0
B117: 277 | C117: Diğer Özel Tükenmeye Tabi Varlıklar | D117: =IF(ISERROR(VLOOKUP(B117,HESAP_KODU,5,FALSE)),0,IF(VLOOKUP(B117,HESAP_KODU,5,FALSE)=0,VLOOKUP(B117,HESAP_KODU,6,FALSE),VLOOKUP(B117,HESAP_KODU,5,FALSE))) -> 0 | F117: 54 | G117: Kar Yedekleri | H117: =SUM(H118:H122) -> 0
B118: 278 | C118: Birikmiş Tükenme Payları (-) | D118: =IF(ISERROR(VLOOKUP(B118,HESAP_KODU,5,FALSE)),0,IF(VLOOKUP(B118,HESAP_KODU,5,FALSE)=0,VLOOKUP(B118,HESAP_KODU,6,FALSE),VLOOKUP(B118,HESAP_KODU,5,FALSE))) -> 0 | F118: 540 | G118: Yasal Yedekler | H118: =IF(ISERROR(VLOOKUP(F118,HESAP_KODU,5,FALSE)),0,IF(VLOOKUP(F118,HESAP_KODU,5,FALSE)=0,VLOOKUP(F118,HESAP_KODU,6,FALSE),VLOOKUP(F118,HESAP_KODU,5,FALSE))) -> 0
B119: 279 | C119: Verilen Avanslar | D119: =IF(ISERROR(VLOOKUP(B119,HESAP_KODU,5,FALSE)),0,IF(VLOOKUP(B119,HESAP_KODU,5,FALSE)=0,VLOOKUP(B119,HESAP_KODU,6,FALSE),VLOOKUP(B119,HESAP_KODU,5,FALSE))) -> 0 | F119: 541 | G119: Statü Yedekleri | H119: =IF(ISERROR(VLOOKUP(F119,HESAP_KODU,5,FALSE)),0,IF(VLOOKUP(F119,HESAP_KODU,5,FALSE)=0,VLOOKUP(F119,HESAP_KODU,6,FALSE),VLOOKUP(F119,HESAP_KODU,5,FALSE))) -> 0
B120: 28 | C120: Gelecek Yıllara Ait Giderler ve | D120: =SUM(D122:D123) -> 0 | F120: 542 | G120: Olağanüstü Yedekler | H120: =IF(ISERROR(VLOOKUP(F120,HESAP_KODU,5,FALSE)),0,IF(VLOOKUP(F120,HESAP_KODU,5,FALSE)=0,VLOOKUP(F120,HESAP_KODU,6,FALSE),VLOOKUP(F120,HESAP_KODU,5,FALSE))) -> 0
C121: Gelir Tahakkukları | F121: 548 | G121: Diğer Kar Yedekleri | H121: =IF(ISERROR(VLOOKUP(F121,HESAP_KODU,5,FALSE)),0,IF(VLOOKUP(F121,HESAP_KODU,5,FALSE)=0,VLOOKUP(F121,HESAP_KODU,6,FALSE),VLOOKUP(F121,HESAP_KODU,5,FALSE))) -> 0
B122: 280 | C122: Gelecek Yıllara Ait Giderler | D122: =IF(ISERROR(VLOOKUP(B122,HESAP_KODU,5,FALSE)),0,IF(VLOOKUP(B122,HESAP_KODU,5,FALSE)=0,VLOOKUP(B122,HESAP_KODU,6,FALSE),VLOOKUP(B122,HESAP_KODU,5,FALSE))) -> 0 | F122: 549 | G122: Özel Fonlar | H122: =IF(ISERROR(VLOOKUP(F122,HESAP_KODU,5,FALSE)),0,IF(VLOOKUP(F122,HESAP_KODU,5,FALSE)=0,VLOOKUP(F122,HESAP_KODU,6,FALSE),VLOOKUP(F122,HESAP_KODU,5,FALSE))) -> 0
B123: 281 | C123: Gelir Tahakkukları | D123: =IF(ISERROR(VLOOKUP(B123,HESAP_KODU,5,FALSE)),0,IF(VLOOKUP(B123,HESAP_KODU,5,FALSE)=0,VLOOKUP(B123,HESAP_KODU,6,FALSE),VLOOKUP(B123,HESAP_KODU,5,FALSE))) -> 0 | F123: 57 | G123: Geçmiş Yıllar Karları | H123: =+H124 -> 0
B124: 29 | C124: Diğer Duran Varlıklar | D124: =SUM(D125,D126,D127,D128,D130,D131,-D132,-D133) -> 0 | F124: 570 | G124: Geçmiş Yıllar Karları | H124: =IF(ISERROR(VLOOKUP(F124,HESAP_KODU,5,FALSE)),0,IF(VLOOKUP(F124,HESAP_KODU,5,FALSE)=0,VLOOKUP(F124,HESAP_KODU,6,FALSE),VLOOKUP(F124,HESAP_KODU,5,FALSE))) -> 0
B125: 291 | C125: Gelecek Yıllarda İndirilecek KDV | D125: =IF(ISERROR(VLOOKUP(B125,HESAP_KODU,5,FALSE)),0,IF(VLOOKUP(B125,HESAP_KODU,5,FALSE)=0,VLOOKUP(B125,HESAP_KODU,6,FALSE),VLOOKUP(B125,HESAP_KODU,5,FALSE))) -> 0 | F125: 58 | G125: Geçmiş Yıllar Zararları (-) | H125: =+H126 -> 0
B126: 292 | C126: Diğer KDV | D126: 0 | F126: 580 | G126: Geçmiş Yıllar Zararları (-) | H126: =IF(ISERROR(VLOOKUP(F126,HESAP_KODU,5,FALSE)),0,IF(VLOOKUP(F126,HESAP_KODU,5,FALSE)=0,VLOOKUP(F126,HESAP_KODU,6,FALSE),VLOOKUP(F126,HESAP_KODU,5,FALSE))) -> 0
B127: 293 | C127: Gelecek Yılalr İhtiyacı Stoklar | D127: 0 | F127: 59 | G127: Dönem Net Karı (Zararı) | H127: =SUM(H128,-H129) -> 0
B128: 294 | C128: Elden Çıkarılacak Stoklar Ve Mad.D.V. | D128: 0 | F128: 590 | G128: Dönem Net Karı | H128: =IF(ISERROR(VLOOKUP(F128,HESAP_KODU,5,FALSE)),0,IF(VLOOKUP(F128,HESAP_KODU,5,FALSE)=0,VLOOKUP(F128,HESAP_KODU,6,FALSE),VLOOKUP(F128,HESAP_KODU,5,FALSE))) -> 0
B129: 296 | C129: Geçici Hesap | D129: 0 | F129: 591 | G129: Dönem Net Zararı (-) | H129: =IF(ISERROR(VLOOKUP(F129,HESAP_KODU,5,FALSE)),0,IF(VLOOKUP(F129,HESAP_KODU,5,FALSE)=0,VLOOKUP(F129,HESAP_KODU,6,FALSE),VLOOKUP(F129,HESAP_KODU,5,FALSE))) -> 0
B130: 295 | C130: Peşin Ödenen Vergi Ve Fonlar | D130: 0
B131: 297 | C131: Diğer Çeşitli Duran Varlıklar | D131: 0
B132: 298 | C132: Stok Değer Düşüklüğü Karşılığı (-) | D132: 0
B133: 299 | C133: Birikmiş Amortismanlar (-) | D133: 0
C134: AKTİF (VARLIKLAR) TOPLAMI | D134: =+D6+D64 -> 8700 | G134: PASİF KAYNAKLAR TOPLAMI | H134: =+H6+H64+H104 -> 2500000
H137: =+H134-D134 -> 2491300

Sheet GELİR TABLOSU
B2: 31/12/202.. TARİHLİ AYRINTILI GELİR TABLOSU
A5: KOD | B5: HESAP ADI | C5: Cari Dönem
B6: A-BRÜT SATIŞLAR | C6: =SUM(C7:C9) -> 5500
A7: 600 | B7: 1-Yurt İçi Satışlar | C7: =IF(ISERROR(VLOOKUP(A7,HESAP_KODU,5,FALSE)),0,IF(VLOOKUP(A7,HESAP_KODU,5,FALSE)=0,VLOOKUP(A7,HESAP_KODU,6,FALSE),VLOOKUP(A7,HESAP_KODU,5,FALSE))) -> 5500
A8: 601 | B8: 2-Yurt Dışı Satışlar | C8: =IF(ISERROR(VLOOKUP(A8,HESAP_KODU,5,FALSE)),0,IF(VLOOKUP(A8,HESAP_KODU,5,FALSE)=0,VLOOKUP(A8,HESAP_KODU,6,FALSE),VLOOKUP(A8,HESAP_KODU,5,FALSE))) -> 0
A9: 602 | B9: 3-Diğer Gelirler | C9: =IF(ISERROR(VLOOKUP(A9,HESAP_KODU,5,FALSE)),0,IF(VLOOKUP(A9,HESAP_KODU,5,FALSE)=0,VLOOKUP(A9,HESAP_KODU,6,FALSE),VLOOKUP(A9,HESAP_KODU,5,FALSE))) -> 0
B10: B-SATIŞ İNDİRİMLERİ ( - ) | C10: =SUM(C11:C13) -> 400
A11: 610 | B11: 1-Satıştan İadeler ( - ) | C11: =IF(ISERROR(VLOOKUP(A11,HESAP_KODU,5,FALSE)),0,IF(VLOOKUP(A11,HESAP_KODU,5,FALSE)=0,VLOOKUP(A11,HESAP_KODU,6,FALSE),VLOOKUP(A11,HESAP_KODU,5,FALSE))) -> 400
A12: 611 | B12: 2-Satıştan İskontalar ( - ) | C12: =IF(ISERROR(VLOOKUP(A12,HESAP_KODU,5,FALSE)),0,IF(VLOOKUP(A12,HESAP_KODU,5,FALSE)=0,VLOOKUP(A12,HESAP_KODU,6,FALSE),VLOOKUP(A12,HESAP_KODU,5,FALSE))) -> 0
A13: 612 | B13: 3-Diğer İndirimler ( - ) | C13: =IF(ISERROR(VLOOKUP(A13,HESAP_KODU,5,FALSE)),0,IF(VLOOKUP(A13,HESAP_KODU,5,FALSE)=0,VLOOKUP(A13,HESAP_KODU,6,FALSE),VLOOKUP(A13,HESAP_KODU,5,FALSE))) -> 0
B14: C-NET SATIŞLAR | C14: =C6-C10 -> 5100
B15: D-SATIŞLARIN MALİYETİ ( - ) | C15: =SUM(C16:C19) -> 0
A16: 620 | B16: 1-Satılan Mamüller Maliyeti ( - ) | C16: =IF(ISERROR(VLOOKUP(A16,HESAP_KODU,5,FALSE)),0,IF(VLOOKUP(A16,HESAP_KODU,5,FALSE)=0,VLOOKUP(A16,HESAP_KODU,6,FALSE),VLOOKUP(A16,HESAP_KODU,5,FALSE))) -> 0
A17: 621 | B17: 2-Satılan Ticari Mallar Maliyeti ( - ) | C17: =IF(ISERROR(VLOOKUP(A17,HESAP_KODU,5,FALSE)),0,IF(VLOOKUP(A17,HESAP_KODU,5,FALSE)=0,VLOOKUP(A17,HESAP_KODU,6,FALSE),VLOOKUP(A17,HESAP_KODU,5,FALSE))) -> 0
A18: 622 | B18: 3-Satılan Hizmet Maliyeti ( - ) | C18: =IF(ISERROR(VLOOKUP(A18,HESAP_KODU,5,FALSE)),0,IF(VLOOKUP(A18,HESAP_KODU,5,FALSE)=0,VLOOKUP(A18,HESAP_KODU,6,FALSE),VLOOKUP(A18,HESAP_KODU,5,FALSE))) -> 0
A19: 623 | B19: 4-Diğer Satışların Maliyeti ( - ) | C19: =IF(ISERROR(VLOOKUP(A19,HESAP_KODU,5,FALSE)),0,IF(VLOOKUP(A19,HESAP_KODU,5,FALSE)=0,VLOOKUP(A19,HESAP_KODU,6,FALSE),VLOOKUP(A19,HESAP_KODU,5,FALSE))) -> 0
B20: BRÜT SATIŞ KARI VEYA ZARARI | C20: =(C6-C10)-C15 -> 5100
B21: E-FAALİYET GİDERLERİ | C21: =SUM(C22:C24) -> 1800
A22: 750 | B22: 1-Araştırma ve Geliştirme Giderleri ( - ) | C22: =IF(ISERROR(VLOOKUP(A22,HESAP_KODU,5,FALSE)),0,IF(VLOOKUP(A22,HESAP_KODU,5,FALSE)=0,VLOOKUP(A22,HESAP_KODU,6,FALSE),VLOOKUP(A22,HESAP_KODU,5,FALSE))) -> 500
A23: 760 | B23: 2-Pazarlama, Satış ve Dağıtım Giderleri (-) | C23: =IF(ISERROR(VLOOKUP(A23,HESAP_KODU,5,FALSE)),0,IF(VLOOKUP(A23,HESAP_KODU,5,FALSE)=0,VLOOKUP(A23,HESAP_KODU,6,FALSE),VLOOKUP(A23,HESAP_KODU,5,FALSE))) -> 600
A24: 770 | B24: 3-Genel Yönetim Giderleri ( - ) | C24: =IF(ISERROR(VLOOKUP(A24,HESAP_KODU,5,FALSE)),0,IF(VLOOKUP(A24,HESAP_KODU,5,FALSE)=0,VLOOKUP(A24,HESAP_KODU,6,FALSE),VLOOKUP(A24,HESAP_KODU,5,FALSE))) -> 700
B25: FAALİYET KARI VEYA ZARARI | C25: =SUM(C20,-C21) -> 3300
B26: F-DİĞER FAALİYETLERDEN OLAĞAN GELİR VE KARLAR | C26: =SUM(C27:C36) -> 0
A27: 640 | B27: 1-İştiraklerden Temettü Gelirleri | C27: =IF(ISERROR(VLOOKUP(A27,HESAP_KODU,5,FALSE)),0,IF(VLOOKUP(A27,HESAP_KODU,5,FALSE)=0,VLOOKUP(A27,HESAP_KODU,6,FALSE),VLOOKUP(A27,HESAP_KODU,5,FALSE))) -> 0
A28: 641 | B28: 2-Bağlı Ortaklıklardan Temettü Gelirleri | C28: 0
A29: 642 | B29: 3-Faiz Gelirleri | C29: 0
A30: 643 | B30: 4-Komisyon Gelirleri | C30: 0
A31: 644 | B31: 5-Konusu Kalmayan Karşılıklar | C31: 0
A32: 645 | B32: 6-Menkul Kıymet Satış Karları | C32: 0
A33: 646 | B33: 7-Kambiyo Karları | C33: 0
A34: 647 | B34: 8-Reeskont Faiz Gelirleri | C34: 0
A35: 648 | B35: 9-Enflasyon Düzeltmesi Karları | C35: 0
A36: 649 | B36: 10-Faaliyetlerle İlgili Diğer Olağan Gelir ve Karlar | C36: 0
B37: G-DİĞER FAAL. OLAĞAN GİDER VE ZARARLAR(-) | C37: =SUM(C38:C43) -> 0
A38: 653 | B38: 1-Komisyon Giderleri ( - ) | C38: =IF(ISERROR(VLOOKUP(A38,HESAP_KODU,5,FALSE)),0,IF(VLOOKUP(A38,HESAP_KODU,5,FALSE)=0,VLOOKUP(A38,HESAP_KODU,6,FALSE),VLOOKUP(A38,HESAP_KODU,5,FALSE))) -> 0
A39: 654 | B39: 2-Karşılık Giderleri ( - ) | C39: 0
A40: 655 | B40: 3-Menkul Kıymet Satış Zararları ( - ) | C40: 0
A41: 656 | B41: 4-Kambiyo Zararları ( - ) | C41: 0
A42: 657 | B42: 5-Reeskont Faiz Giderleri ( - ) | C42: 0
A43: 659 | B43: 6-Diğer olağan Gider ve Zararlar ( - ) | C43: 0
B44: H-FİNANSMAN GİDERLERİ ( - ) | C44: =SUM(C45:C46) -> 800
A45: 780 | B45: 1-Kısa Vadeli Borçlanma Giderleri ( - ) | C45: =IF(ISERROR(VLOOKUP(A45,HESAP_KODU,5,FALSE)),0,IF(VLOOKUP(A45,HESAP_KODU,5,FALSE)=0,VLOOKUP(A45,HESAP_KODU,6,FALSE),VLOOKUP(A45,HESAP_KODU,5,FALSE))) -> 800
A46: 661 | B46: 2-Uzun Vadeli Borçlanma Giderleri ( - ) | C46: =IF(ISERROR(VLOOKUP(A46,HESAP_KODU,5,FALSE)),0,IF(VLOOKUP(A46,HESAP_KODU,5,FALSE)=0,VLOOKUP(A46,HESAP_KODU,6,FALSE),VLOOKUP(A46,HESAP_KODU,5,FALSE))) -> 0
B47: OLAĞAN KAR VEYA ZARAR | C47: =(((((C6-C10)-C15)-C21)+C26)-C37)-C44 -> 2500
B48: I-OLAĞAN DIŞI GELİR VE KARLAR | C48: =C49+C50 -> 0
A49: 671 | B49: 1-Önceki Dönem Gelir ve Karları | C49: =IF(ISERROR(VLOOKUP(A49,HESAP_KODU,5,FALSE)),0,IF(VLOOKUP(A49,HESAP_KODU,5,FALSE)=0,VLOOKUP(A49,HESAP_KODU,6,FALSE),VLOOKUP(A49,HESAP_KODU,5,FALSE))) -> 0
A50: 679 | B50: 2-Diğer Olağandışı Gelir ve Karlar | C50: =IF(ISERROR(VLOOKUP(A50,HESAP_KODU,5,FALSE)),0,IF(VLOOKUP(A50,HESAP_KODU,5,FALSE)=0,VLOOKUP(A50,HESAP_KODU,6,FALSE),VLOOKUP(A50,HESAP_KODU,5,FALSE))) -> 0
B51: J-OLAĞANDIŞI GİDER VE ZARARLAR ( - ) | C51: =SUM(C52:C54) -> 0
A52: 680 | B52: 1-Çalışmayan Kısım Gider ve Zararları ( - ) | C52: =IF(ISERROR(VLOOKUP(A52,HESAP_KODU,5,FALSE)),0,IF(VLOOKUP(A52,HESAP_KODU,5,FALSE)=0,VLOOKUP(A52,HESAP_KODU,6,FALSE),VLOOKUP(A52,HESAP_KODU,5,FALSE))) -> 0
A53: 681 | B53: 2-Önceki Dönem Gider ve Zararları ( - ) | C53: =IF(ISERROR(VLOOKUP(A53,HESAP_KODU,5,FALSE)),0,IF(VLOOKUP(A53,HESAP_KODU,5,FALSE)=0,VLOOKUP(A53,HESAP_KODU,6,FALSE),VLOOKUP(A53,HESAP_KODU,5,FALSE))) -> 0
A54: 689 | B54: 3-Diğer Olağandışı Gider ve Zararlar ( - ) | C54: =IF(ISERROR(VLOOKUP(A54,HESAP_KODU,5,FALSE)),0,IF(VLOOKUP(A54,HESAP_KODU,5,FALSE)=0,VLOOKUP(A54,HESAP_KODU,6,FALSE),VLOOKUP(A54,HESAP_KODU,5,FALSE))) -> 0
B55: DÖNEM KARI VEYA ZARARI | C55: =(((((((C6-C10)-C15)-C21)+C26)-C37)-C44)+C48)-C51 -> 2500
A56: 691 | B56: K-DÖNEM KARI VERGİ VE DİĞER YASAL YÜK. KARŞ.(-) | C56: =IF(ISERROR(VLOOKUP(A56,HESAP_KODU,5,FALSE)),0,IF(VLOOKUP(A56,HESAP_KODU,5,FALSE)=0,VLOOKUP(A56,HESAP_KODU,6,FALSE),VLOOKUP(A56,HESAP_KODU,5,FALSE))) -> 0
A57: 692 | B57: DÖNEM NET KARI VEYA ZARARI | C57: =((((((((C6-C10)-C15)-C21)+C26)-C37)-C44)+C48)-C51)-C56 -> 2500

Sheet RASYO ANALİZLER
A1: RASYO ADI | B1: ORAN ŞEKLİ | C1: ÇIKAN SONUÇ | D1: OLMASI GEREKEN ORAN | E1: ANALİZ YORUM
A2: CARİ ORAN | B2: Dönen Varlıklar / KVYK | C2: =+BİLANÇO!D6/BİLANÇO!H6 ->  | D2: 2< | E2: işletmenin kısa vadeli borç ödeme gücünü gösterir.1 den düşük olması parasal sıkıntı, 2 den fazla olması ise işletmenin gereğinden fazla fon tuttuğu anlamına gelir.
A3: LİKİDİTE ORANLARI (Asit Test Oranı) | B3: Dönen Varlıklar-Stoklar / KVYK | C3: =+(BİLANÇO!D6-BİLANÇO!D39)/BİLANÇO!H6 ->  | D3: 1< | E3: işletmenin stoklarına başvurmadan kısa vadeli yükümlülüklerini yerine getirebilme yeterliliği hakkında bilgi verir.
A4: NAKİT ORAN | B4: Hazır değerler +Menkul Kıymetler / KVYK | C4: =+(BİLANÇO!D7+BİLANÇO!D13)/BİLANÇO!H6 ->  | D4: 0,2< | E4: işletmenin stoklarına ve alacaklarına başvurmadan K.V. yükümlülüklerini yerine getirebilme yeterliliği hakkında bilgi verir.
A5: STOK BAĞIMLILIK ORANI | B5: K.V.Y.K.-(Haz.Değ+Menk.Kıym) / STOKLAR | C5: =(BİLANÇO!H6-(BİLANÇO!D7+BİLANÇO!D13))/BİLANÇO!D39 ->  | D5: ? | E5: Asit test oranının 1 den küçük çıkması halinde K.V.Borçların ödenebilmesi için stokların % kaçının satılması gerektiğini belirtir.
A6: NET ÇALIŞMA SERMAYESİ | B6: Dönen Varlıklar-K.V.Y.K. | C6: =+BİLANÇO!D6-BİLANÇO!H6 -> 8700 | E6: K.V. yükümlülüklerini yerine getirebilme gücünü gösterir.
A7: NET İŞLETME SERMAYESİ DEVİR HIZI | B7: Net Satışlar / NET İŞLETME SERMAYESİ | C7: =+'GELİR TABLOSU'!C14/'RASYO ANALİZLER'!C6 -> 0.5862068966 | D7: ? | E7: Yüksek olması tercih edilir Oranın Pay kısmının ve paydanında yüksek olması tercih edilir. Ancak cari oranla birlikte yorumlanmalıdır. Net İşletme sermayesinin düşük olması riskli olabilir.
A8: STOK DEVİR HIZI | B8: Satışların Maliyeti / ORTALAMA STOKLAR | C8: =+'GELİR TABLOSU'!C15/BİLANÇO!D39 ->  | D8: 6< | E8: Stok devir hızının yavaşlaması işletmenin stok maliyetlerinin artabileceğine işaret etmektedir.
A9: ALACAK DEVİR HIZI | B9: Net Satışlar / ortalama ticari alacaklar | C9: =+'GELİR TABLOSU'!C14/BİLANÇO!D20 ->  | D9: 7< | E9: Alacak devir hızının gerilemesi işletmenin alacaklarını nakde dönüştürmede sıkıntılar yaşadığını,alacak tahsilat politikasının bozulduğunu ve şüpheli alacak riskinin arttığını gösterir.
A10: AKTİF DEVİR HIZI | B10: Net Satışlar / ortalama aktif toplam | C10: =+'GELİR TABLOSU'!C14/BİLANÇO!D134 -> 0.5862068966 | D10: 1< | E10: işletmenin sahip olduğu toplam varlıkları kullanmadaki etkinliğini ölçmek için bu oran kullanılır.
A11: ÖZKAYNAK DEVİR HIZI | B11: Net Satışlar / ortalama özkaynaklar | C11: =+'GELİR TABLOSU'!C14/BİLANÇO!H104 -> 0.00204 | D11: 4-5< | E11: İşletmenin özsermayesini ne ölçüde verimli kullandığını gösterir.
A12: FİNANSAL KALDIRAÇ | B12: Yabancı Kaynaklar / aktif toplam | C12: =+(BİLANÇO!H6+BİLANÇO!H64)/BİLANÇO!D134 -> 0 | D12: 0,5> | E12: Varlıkların ne ölçüde yabancı kaynaklarla karşılandığını gösterir.
A13: ÖZKAYNAK ORANI | B13: Özkaynaklar / aktif toplam | C13: =+BİLANÇO!H104/BİLANÇO!D134 -> 287.3563218 | D13: 0,5< | E13: Varlıkların ne ölçüde işletme sahip ve sahiplerinin tahsis ettikleri kaynaklarla finanse edildiğini gösterir.
A14: FİNASMAN ORAN | B14: Özkaynaklar / KVYK + UVYK | C14: =+BİLANÇO!H104/(BİLANÇO!H6+BİLANÇO!H64) ->  | D14: 1< | E14: Oranın arzu edilen seviyenin altında olunması durumunda işletmenin sahiplerinden daha çok üçüncü kişilerce finanse edildiğini gösterir. Bu da işletme için bir risk unsurudur.
A15: KVYK / toplam yabancı kaynaklar | B15: Kısa Vadeli Yabancı Kaynaklar / toplam yabancı kaynaklar | C15: =+BİLANÇO!H6/(BİLANÇO!H6+BİLANÇO!H64) ->  | D15: 0,7> | E15: Kısa vadeli kaynakların toplam yabancı kaynaklar içindeki payını gösterir.
A16: UVYK / toplam yabancı kaynaklar | B16: Uzun Vadeli Yabancı Kaynaklar / toplam yabancı kaynaklar | C16: =+BİLANÇO!H64/(BİLANÇO!H6+BİLANÇO!H64) ->  | D16: 0,52< | E16: Uzun vadeli kaynakların toplam yabancı kaynaklar içindeki payını gösterir.
A17: K.V.Y.K. 'IN ÖZKAYNAKLARA ORANI | B17: Kısa Vadeli Yabancı Kaynaklar / özkaynaklar | C17: =+BİLANÇO!H6/BİLANÇO!H104 -> 0 | D17: 1< | E17: Kısa vadede özkaynakların kaç katı borçlandığı hesaplanır.
A18: DURAN VARLIKLARIN ÖZKAYNAKLARA ORANI | B18: Duran Varlıklar / özkaynaklar | C18: =+BİLANÇO!D64/BİLANÇO!H104 -> 0 | D18: 1> | E18: Özkaynakların ne kadarının duran varlıklarda kullanıldığını gösterir. 1 den büyük olması duran varlıkların bir kısmının borçla temin edildiğini gösterir.
A19: BRÜT SATIŞ KARLILIĞI ORANI | B19: Brüt Satış Karı / net satışlar | C19: =+'GELİR TABLOSU'!C6/'GELİR TABLOSU'!C14 -> 1.078431373 | D19: 0,15< | E19: yorum
A20: VERGİ SONRASI NET KAR MARJI | B20: Net Kar / net satışlar | C20: =+'GELİR TABLOSU'!C57/'GELİR TABLOSU'!C6 -> 0.4545454545 | D20: ? | E20: Vergi sonrası satış karının net satış içerisindeki payını gösterir.
A21: FAALİYET KARLILIĞI ORANI | B21: Faaliyet karı / net satışlar | C21: =+'GELİR TABLOSU'!C25/'GELİR TABLOSU'!C14 -> 0.6470588235 | D21: 0,12< | E21: yorum
A22: FAALİYET GİDERLERİ ORANI | B22: Faaliyet Giderleri / net satışlar | C22: =+'GELİR TABLOSU'!C21/'GELİR TABLOSU'!C14 -> 0.3529411765 | D22: ? | E22: Faaliyet giderlerinin net satışların yüzde kaçı olduğunu ve dönem karı üzerindeki ağırlığını ölçer
A23: DEVAMLI SERMAYE | B23: UZUN VADELİ YABANCI KAYNAKLAR + ÖZ KAYNAKLAR | C23: =+BİLANÇO!H64+BİLANÇO!H104 -> 2500000 | D23: ? | E23: ?
A24: DU PONT ANALİZİ | B24: Net Kar Marjı*Varlık devir hızı*Özsermaye çarpanı | C24: =+('GELİR TABLOSU'!C55/'GELİR TABLOSU'!C14)*('GELİR TABLOSU'!C14/BİLANÇO!D134)*(BİLANÇO!D134/BİLANÇO!H104) -> 0.001
